Cogmind - Beta 15 @@@ ROGUE MODE // 2025.09.21 @ 04:38:55 Player: shapeshifter Result: Destroyed by S-43 Plague with Heavy Machine Gun Performance ------------- Evolutions (9) 4500 Regions Visited (31) 6200 Robots Destroyed (213) 1065 Value Destroyed (7723) 7723 Prototype IDs (247) 4940 Alien Tech Used (12) 2400 Bonus (16951) 16951 TOTAL SCORE: 43779 Bonus ------- High Alert Combat Kills 125 Follower Combat Kills 2638 Aligned with FarCom 300 Met Data Miner 300 Used Data Conduit 3000 Met Zhirov 300 Built Enhanced Grunts 300 Met R17 at Cetus 500 Found Hidden Lab 3000 Decrypted A0 Command 3000 Used Core Reset Matrix 3000 Pursued by Intercept 1500 Friendly Fire -1012 Cogmind --------- Core Integrity 0/1600 Matter 292/300 Energy 99/100 System Corruption 16% Temperature Cool (0) Movement Core (50) Location -1/Access Parts ------- > --- POWER (2) -------- (None) > --- PROPULSION (9) --- (None) > --- UTILITY (11) ----- (None) > --- WEAPON (3) ------- Enhanced Quantum Rifle > --- INVENTORY (5) ---- AEGIS Remote Shield Subatomic Replicator Enhanced Quantum Rifle Peak State ------------ > --- POWER ------------ Light Quantum Reactor Matter Drive > --- PROPULSION ------- Cooled Gravmag System Cooled Gravmag System Cooled Gravmag System Improved Antigrav System Improved Antigrav System Improved Antigrav System Improved Antigrav System > --- UTILITY ---------- Experimental Power Amplifier Large Storage Unit Advanced Energy Well Advanced Weight Redist. System Advanced Sensor Array Advanced Signal Interpreter Medium Regenerative Plating Graphene Brace Advanced Point Defense System Deep Network Scanner Core Physics Calibrator > --- WEAPON ----------- Hypervelocity EM Gauss Rifle Sigix Broadsword > --- INVENTORY -------- Advanced Energy Well Quantum Capacitor Graphene Brace AEGIS Remote Shield Transdimensional Reconstructor Transdimensional Reconstructor High-powered Transdimensional Reconstructor High-powered Transdimensional Reconstructor Core Regenerator Subatomic Replicator Hypervelocity EM Gauss Rifle Advanced Micro-nuke Launcher [Rating: 199] Favorites ----------- Power Hybrid Deuterium Engine Engine Hybrid Deuterium Engine Power Core Nuclear Core Reactor Compact Particle Reactor Propulsion Medium Treads Treads Medium Treads Leg Enhanced Armored Leg Wheel Compact Wheel Hover Unit Improved Linear Gravjet Flight Unit VTOL Module Utility Large Storage Unit Device Advanced Heat Sink Storage Large Storage Unit Processor Improved Signal Interpreter Hackware Advanced Hacking Suite Protection Medium Regenerative Plating Artifact Core Physics Calibrator Weapon Heavy Particle Gun Energy Gun Heavy Particle Gun Energy Cannon Long-range Proton Cannon Ballistic Gun Advanced KE Penetrator Ballistic Cannon AWS/Autocannon Launcher Advanced Micro-nuke Launcher Special Weapon Improved Remote Datajack Slashing Weapon Longsword +1 Piercing Weapon Plasma Lance Build | -11 -10 -10 -10 -9 -8 -7 -7 -7 -6 -6 -6 -6 -5 -5 -5 -5 -5 -4 -4 -4 -4 -4 -4 -3 -3 -3 -3 -2 -2 -2 -1 ------- Run | Yrd Mat Min Exi Min Mat Fac Low Low Fac Low Low Dat Pro Fac Ext Cet Arc Fac Was Fac Upp Upp Zhi Pro Res Arm Lab Res Qua Sec Acc Slots Evolved 18 | . . . . . 4 2 . . 2 . . . . 2 . . . 2 . . . . . . 2 . . 2 . . 2 Power 1 | . . . . . . . . . . . . . . . . . . . . . . . . . . . . 1 . . . Propulsion 7 | . . . . . 1 1 . . 1 . . . . . . . . 1 . . . . . . 1 . . . . . 2 Utility 9 | . . . . . 2 1 . . 1 . . . . 2 . . . 1 . . . . . . 1 . . 1 . . . Weapon 1 | . . . . . 1 . . . . . . . . . . . . . . . . . . . . . . . . . . Parts Attached 240 | 6 2 2 1 . 20 31 2 2 11 . 2 8 6 30 18 22 . 8 1 7 7 1 6 . 8 5 3 2 10 8 11 Power 22 | 1 . . 1 . 1 4 . . . . . . 1 2 2 2 . . . . 1 . 1 . . 1 . 1 1 1 2 Engine 7 | 1 . . 1 . . 3 . . . . . . 1 . . 1 . . . . . . . . . . . . . . . Core 7 | . . . . . 1 1 . . . . . . . 1 2 . . . . . 1 . . . . . . . . . 1 Reactor 8 | . . . . . . . . . . . . . . 1 . 1 . . . . . . 1 . . 1 . 1 1 1 1 Propulsion 78 | 2 . 2 . . 4 13 . 2 5 . 2 3 3 12 4 6 . 2 . 4 1 . 3 . 3 . . . 1 3 3 Treads 12 | 2 . . . . 1 . . . 5 . 2 . . . . 2 . . . . . . . . . . . . . . . Leg 16 | . . . . . 3 . . . . . . . . 8 4 . . . . . . . . . . . . . . . 1 Wheel 2 | . . 2 . . . . . . . . . . . . . . . . . . . . . . . . . . . . . Hover 36 | . . . . . . 12 . . . . . 3 . . . 4 . 2 . 4 1 . 3 . 3 . . . 1 3 . Flight 12 | . . . . . . 1 . 2 . . . . 3 4 . . . . . . . . . . . . . . . . 2 Utility 85 | 1 2 . . . 8 8 2 . 6 . . 2 2 8 6 7 . 5 1 1 5 1 2 . 3 2 1 1 6 3 2 Device 40 | . 1 . . . . 4 2 . 1 . . 1 1 4 . 4 . 2 1 1 3 1 2 . . 1 . 1 6 2 2 Storage 11 | 1 1 . . . . 1 . . . . . . 1 . 2 . . 2 . . 1 . . . 2 . . . . . . Processor 9 | . . . . . . 3 . . 3 . . . . 1 . . . 1 . . 1 . . . . . . . . . . Hackware 7 | . . . . . . . . . 1 . . . . 2 2 . . . . . . . . . . 1 1 . . . . Protection 17 | . . . . . 8 . . . 1 . . 1 . 1 2 3 . . . . . . . . 1 . . . . . . Artifact 1 | . . . . . . . . . . . . . . . . . . . . . . . . . . . . . . 1 . Weapon 55 | 2 . . . . 7 6 . . . . . 3 . 8 6 7 . 1 . 2 . . . . 2 2 2 . 2 1 4 Energy Gun 21 | 2 . . . . 5 . . . . . . . . 2 2 4 . 1 . . . . . . . . 2 . . . 3 Energy Cannon 6 | . . . . . . . . . . . . 2 . 1 3 . . . . . . . . . . . . . . . . Ballistic Gun 14 | . . . . . 1 . . . . . . . . 3 1 3 . . . 2 . . . . 1 2 . . . . 1 Ballistic Cannon 1 | . . . . . 1 . . . . . . . . . . . . . . . . . . . . . . . . . . Launcher 2 | . . . . . . 1 . . . . . . . . . . . . . . . . . . . . . . . 1 . Special Weapon 2 | . . . . . . . . . . . . . . 1 . . . . . . . . . . . . . . 1 . . Impact Weapon . | . . . . . . . . . . . . . . . . . . . . . . . . . . . . . . . . Slashing Weapon 8 | . . . . . . 5 . . . . . 1 . 1 . . . . . . . . . . . . . . 1 . . Piercing Weapon 1 | . . . . . . . . . . . . . . . . . . . . . . . . . 1 . . . . . . Special Melee Weapon . | . . . . . . . . . . . . . . . . . . . . . . . . . . . . . . . . Unidentified Prototypes 22 | . . . . . 3 4 . . . . . . . . . 4 . . 1 . . . 1 . 1 1 3 1 2 . 1 Corrupted Parts 8 | . . . . . . . . . . . . . . . 2 6 . . . . . . . . . . . . . . . System Corruption 53 | . . . . . . . . . . . . . . . 17 36 . . . . . . . . . . . . . . . Parts Lost 100 | . . . . . . 11 1 4 1 . 3 1 13 14 3 2 . . . 1 3 . . . 3 . . . 3 26 11 Power 11 | . . . . . . 1 . . . . . . 1 2 1 . . . . . . . . . . . . . . 4 2 Propulsion 42 | . . . . . . 9 1 1 . . 3 1 6 3 1 1 . . . 1 . . . . 2 . . . 1 9 3 Utility 31 | . . . . . . 1 . 3 1 . . . 3 4 1 . . . . . 3 . . . . . . . 2 10 3 Weapon 16 | . . . . . . . . . . . . . 3 5 . 1 . . . . . . . . 1 . . . . 3 3 Highest Loss Streak 10 | . . . . . . 4 1 4 1 . 2 1 9 7 1 1 . . . 1 2 . . . 1 . . . 2 10 3 To Critical Strikes 2 | . . . . . . . . . . . . . . . . 1 . . . . . . . . 1 . . . . . . Average Backups 10 | 3 4 5 9 10 9 9 9 9 10 12 11 11 12 11 6 13 14 13 14 13 13 14 13 13 13 13 13 12 12 10 3 Power 1 | . 1 1 3 3 1 1 1 1 1 1 1 2 2 1 . 1 1 1 1 1 . 1 . 1 1 1 1 . . . . Propulsion 1 | 1 2 2 1 . . 1 1 1 2 3 3 1 1 2 . 1 . . 1 . 4 4 3 3 2 1 1 1 . . . Utility 5 | . . 1 3 5 2 4 4 3 4 5 5 5 7 6 3 10 12 11 10 10 9 9 8 7 8 7 6 5 3 2 1 Weapon 1 | 1 1 1 1 2 4 2 1 1 1 2 1 1 . . 1 . 1 1 1 1 . . . 1 1 2 2 2 1 1 . Tool/Special . | . . . . . . . . . . . . . . . . . . . . . . . . . . . . . . . . Unused Backups 72 | . . . 3 . 18 9 1 . 1 . 1 . . 8 1 3 . . 1 5 1 . 2 1 4 2 2 . 3 4 2 Power 7 | . . . . . 3 2 . . 1 . . . . 1 . . . . . . . . . . . . . . . . . Propulsion 8 | . . . . . 1 . . . . . 1 . . 3 . . . . . . . . 1 . 2 . . . . . . Utility 34 | . . . 2 . 7 5 1 . . . . . . 4 . 3 . . 1 3 1 . 1 1 2 . 1 . 1 1 . Weapon 15 | . . . 1 . 7 1 . . . . . . . . 1 . . . . 2 . . . . . 1 . . 1 . 1 Tool/Special 8 | . . . . . . 1 . . . . . . . . . . . . . . . . . . . 1 1 . 1 3 1 Average Slot Usage (%) 83 | . 100 100 100 100 93 80 67 57 79 80 78 74 64 82 91 83 94 89 94 93 91 93 81 94 98 98 98 98 96 69 6 Engine 3 | . 14 14 14 14 2 5 7 7 6 6 6 6 3 1 . 3 5 1 . . . . . . . . . . . . . Core 1 | . . . . . 6 . . . . . . . . 1 3 1 . . . . . . . . . . . . . . . Reactor 1 | . . . . . . . . . . . . . . 2 . . . 3 5 5 4 5 5 5 4 4 4 7 8 5 . Treads 6 | . 28 16 13 28 5 . . . 30 33 31 13 4 . . 4 . . . . . . . . . . . . . . . Leg 6 | . . . . . 19 . . . . . . . . 18 25 4 . . . . . . . . . . . . . . 1 Hover 10 | . . . . . . 27 13 5 . . . 9 8 . . 10 23 23 26 25 26 26 28 31 32 33 33 30 29 19 . Device 10 | . 14 14 14 14 3 6 14 12 4 . . 7 9 13 3 5 5 9 15 15 23 25 22 26 23 22 22 25 23 18 2 Storage 8 | . 14 14 14 14 9 7 7 7 6 6 6 6 6 8 8 11 11 10 10 10 10 10 10 10 9 9 9 8 8 8 . Processor 7 | . . . . . . 10 15 13 20 13 13 13 13 10 5 5 5 5 5 5 9 10 10 5 4 4 4 4 4 3 . Hackware 5 | . . . . . . . . . 2 6 6 6 . 5 21 17 17 13 10 10 . . . . . 1 4 4 4 3 . Protection 5 | . . . . . 22 9 . . . 6 6 1 1 . 4 4 5 5 5 5 . . 2 5 8 7 4 4 4 3 . Energy Gun 6 | . 28 28 28 28 22 . . . . . . . . 1 4 4 5 8 10 6 . . . . . . 3 8 7 2 1 Energy Cannon 1 | . . . . . . . . . . . . 1 4 . 8 4 . . . . . . . . . . . . . . . Ballistic Gun 2 | . . . . . . . . . . . . . . 3 2 2 11 6 5 8 15 15 1 10 11 8 5 . . . . Slashing Weapon 1 | . . . . . . 8 6 6 . . 1 6 4 2 . . . . . . . . . . . . . . . 2 . Peak Build Rating 199 | 6 7 7 14 14 42 70 58 59 83 83 84 74 75 103 108 125 122 143 147 144 133 122 121 121 143 146 152 170 192 199 31 Average Rating 78 | 4 7 7 11 14 38 46 39 33 73 83 76 52 48 81 96 108 122 134 142 141 119 121 102 120 139 143 148 164 173 142 14 On Entrance 81 | . 6 7 7 14 14 40 37 35 33 83 83 54 74 27 61 108 122 122 142 142 133 117 122 121 120 142 141 152 165 185 12 Naked Turns 45 | . . . . . . . . . . . . . . . . . . . . . . . . . . . . . . . 45 Heaviest Build 102 | 14 30 30 30 28 88 91 34 33 102 102 102 62 62 58 71 72 63 63 62 65 66 63 71 71 78 78 74 87 88 89 23 Greatest Support 160 | 40 40 40 40 40 60 45 26 21 149 140 142 114 114 100 110 160 59 68 68 68 67 63 73 73 88 88 88 88 103 110 32 Greatest Overweight (x) 10 | . . . . . 2 3 4 10 1 . 1 2 4 1 . 1 1 1 . 1 1 . 1 1 1 . . . 1 2 . Average Overweight (x) . | . . . . . . . 1 2 . . . . . . . . 1 . . . . . . . . . . . . . . Largest Inventory Capacity 15 | 8 15 15 15 15 15 15 15 15 15 15 15 15 15 15 15 15 15 15 15 15 15 15 15 15 15 15 15 15 15 15 5 Average Capacity 14 | 7 10 15 15 15 15 15 15 15 15 15 15 15 15 14 10 15 15 15 15 15 15 15 15 15 15 15 15 15 15 13 5 Most Carried 15 | 7 6 5 15 15 15 15 15 15 15 15 15 15 15 15 15 15 15 15 15 15 15 15 15 15 15 15 15 15 15 15 5 Average Carried 12 | 3 4 5 12 15 14 14 14 14 13 15 14 12 13 13 7 14 15 14 15 14 14 14 14 14 14 14 14 13 14 11 3 Final Capacity 15 | 8 15 15 15 15 15 15 15 15 15 15 15 15 15 15 15 15 15 15 15 15 15 15 15 15 15 15 15 15 15 5 5 Final Carried 15 | 5 5 5 15 15 15 14 15 12 15 15 14 15 12 15 15 15 15 15 15 15 15 15 15 15 14 14 15 13 15 5 3 Class Distribution -------------------- 27% | Mutant 16% | Tank 8% | Wizard-Tank 7% | Scavenger-Sprinter 6% | Scavenger-Mutant 4% | Hacker-Tank 4% | Alien-Mutant 3% | Scavenger-Scout 3% | Hacker-Mutant 3% | Alien-Sprinter 3% | Skirmisher Dominant Class ---------------- Mutant | -10/Materials Mutant | -10/Mines Mutant | -10/Exiles Mutant | -9/Mines Tank | -8/Materials Mutant | -7/Factory Mutant | -7/Lower Caves Mutant | -7/Lower Caves Gunner | -6/Factory Tank | -6/Lower Caves Tank | -6/Lower Caves Mutant | -6/Data Miner Scavenger-Mutant | -5/Proximity Caves Scavenger-Mutant | -5/Factory Wizard-Tank | -5/Extension Hacker-Tank | -5/Cetus Hacker-Tank | -5/Archives Hacker-Tank | -4/Factory Scavenger-Skirmisher | -4/Waste Scavenger-Sprinter | -4/Factory Scavenger-Scout | -4/Upper Caves Scavenger-Scout | -4/Upper Caves Scavenger-Scout | -4/Zhirov Scavenger-Sprinter | -3/Proximity Caves Scavenger-Sprinter | -3/Research Scavenger-Sprinter | -3/Armory Hacker-Sprinter | -3/Lab Hacker-Sprinter | -2/Research Alien-Sprinter | -2/Quarantine Alien-Mutant | -2/Section 7 Alien-Mutant | -1/Access Resources | -11 -10 -10 -10 -9 -8 -7 -7 -7 -6 -6 -6 -6 -5 -5 -5 -5 -5 -4 -4 -4 -4 -4 -4 -3 -3 -3 -3 -2 -2 -2 -1 ----------- Run | Yrd Mat Min Exi Min Mat Fac Low Low Fac Low Low Dat Pro Fac Ext Cet Arc Fac Was Fac Upp Upp Zhi Pro Res Arm Lab Res Qua Sec Acc Matter Collected 4809 | 260 10 10 130 30 210 464 56 111 159 47 52 161 50 716 364 354 33 154 . 289 206 222 . 46 399 . . 50 75 111 40 Remotely . | . . . . . . . . . . . . . . . . . . . . . . . . . . . . . . . . Salvage Created 8976 | 16 76 . . 49 1244 1572 101 57 1098 144 34 20 264 1682 638 80 92 274 . 366 206 120 . 9 445 . . 50 210 129 . Parts 430 | 2 5 . . 2 55 82 7 1 45 2 3 3 9 71 17 3 5 8 . 20 31 5 . 2 22 . . 2 18 10 . Haulers Intercepted 13 | . . . . . 5 4 . . . . . . . . 2 . . 1 . . . . . . 1 . . . . . . Recyclers Shooed 11 | 1 . . . . . . . . 1 . . . . 9 . . . . . . . . . . . . . . . . . Parts Field Recycled . | . . . . . . . . . . . . . . . . . . . . . . . . . . . . . . . . Retrieved Matter . | . . . . . . . . . . . . . . . . . . . . . . . . . . . . . . . . Parts Self-Destructed 40 | . . . . . . . 1 3 . 2 6 . 6 . . . . . . . 15 5 . 2 . . . . . . . Prevented 1 | . . . . . . . . . . . . . . . . . . . . . . 1 . . . . . . . . . Kills | -11 -10 -10 -10 -9 -8 -7 -7 -7 -6 -6 -6 -6 -5 -5 -5 -5 -5 -4 -4 -4 -4 -4 -4 -3 -3 -3 -3 -2 -2 -2 -1 ------- Run | Yrd Mat Min Exi Min Mat Fac Low Low Fac Low Low Dat Pro Fac Ext Cet Arc Fac Was Fac Upp Upp Zhi Pro Res Arm Lab Res Qua Sec Acc Combat Hostiles Destroyed 147 | . 2 . . 1 18 17 3 3 32 5 3 . 8 18 7 1 1 4 . 4 7 4 . 1 2 . . . 4 2 . Melee 24 | . . . . . . 10 1 1 . . 1 . . 6 . . . . . . . . . . 2 . . . 2 1 . Guns 41 | . 2 . . 1 4 . . . . . . . . 10 4 . 1 4 . 3 7 4 . 1 . . . . . . . Cannons 62 | . . . . . 13 2 2 2 30 5 2 . 4 . 2 . . . . . . . . . . . . . . . . AOE 17 | . . . . . . 5 . . 2 . . . 4 2 . . . . . 1 . . . . . . . . 2 1 . Classes Destroyed 18 | 1 1 . . . 7 3 1 . 3 . . . . 1 . . . . . . . . . 1 . . . . . . . Worker 16 | . . . . . 1 9 . . 2 . . . . 2 . . . . . . . . . . 2 . . . . . . Builder 9 | . . . . . . 2 . . 2 . . . . 2 1 . . . . . . . . . 1 . . . . 1 . Tunneler 3 | 1 . . . . . . . . . . . . . . . . . . . 1 . . . . 1 . . . . . . Hauler 13 | . . . . . 5 4 . . . . . . . . 2 . . 1 . . . . . . 1 . . . . . . Recycler 14 | . . . . . 2 6 . . 1 . . . . 4 . . . . . . . . . . 1 . . . . . . Operator 4 | . . . . . 1 1 . . 1 . . . . . . . . . . . . . . . 1 . . . . . . Drone 1 | . . . . . . . . . . . . . . . . . . . . . . . . 1 . . . . . . . Watcher 13 | . . . . . 4 2 . . 2 . . . . 4 . . . . . . . . . . . . . 1 . . . Swarmer 34 | . . . . . . 4 . 2 . 3 2 . 4 4 2 . . 3 . . 4 4 . . . . . . 2 . . Grunt 53 | . 2 . . 1 12 9 2 . 15 2 . . 3 3 3 . . . . 1 . . . . . . . . . . . Brawler 2 | . . . . . . . . . 1 . . . 1 . . . . . . . . . . . . . . . . . . Duelist 3 | . . . . . 1 . . . 1 . . . . 1 . . . . . . . . . . . . . . . . . Sentry 13 | . . . . . 5 2 . . 1 . . . . 1 1 . 1 1 . 1 . . . . . . . . . . . Hunter 5 | . . . . . . . . . . . . . . 3 . . . . . . . . . . 2 . . . . . . Programmer 16 | . . . . . . 2 . 1 2 . . . . 6 . . . . . 2 . . . . . . . . 2 1 . Behemoth 2 | . . . . . . . . . 1 . 1 . . . . . . . . . . . . . . . . . . . . Cetus Guard 1 | . . . . . . . . . . . . . . . . 1 . . . . . . . . . . . . . . . Tracker 1 | . . . . . . . . . . . . . . . . . . . . . . . . . . . . . . 1 . Master Thief 4 | . . . . . . . 1 . . . . . . . . . . . . . 3 . . . . . . . . . . Assembled 11 | . . . . . . . . . 11 . . . . . . . . . . . . . . . . . . . . . . Wasp 4 | . . . . . . . . . . . . . . . . . . . . 4 . . . . . . . . . . . Savage 1 | . . . . . . . . . . . . . . . 1 . . . . . . . . . . . . . . . . Best Kill Streak 14 | 1 2 . . 1 4 12 2 2 14 3 2 1 4 5 3 1 1 4 . 2 4 4 . 1 3 . . 1 2 2 . Combat Bots Only 12 | . 2 . . 1 4 5 2 2 12 3 2 . 4 4 3 1 1 4 . 2 4 4 . 1 2 . . . 2 1 . Max Kills in Single Turn 6 | 1 1 . . 1 2 2 1 1 2 1 1 1 3 2 1 1 1 1 . 6 1 2 . 1 1 . . 1 2 1 . Gunslinging 1 | . . . . . . . . . . . . . . . . . . . . . . 1 . . . . . . . . . Exploded 3 | . . . . . . 1 . . 2 . . . 3 2 . . . . . 1 . . . . . . . . 2 1 . Melee 1 | . . . . . . 1 1 1 . . 1 . . 1 . . . . . . . . . . 1 . . . 1 1 . Uniques/NPCs Destroyed 2 | . . . . . . . . . . . . 1 . . . 1 . . . . . . . . . . . . . . . Data Miner (-6/Data Miner) A7 (-5/Cetus) Combat | -11 -10 -10 -10 -9 -8 -7 -7 -7 -6 -6 -6 -6 -5 -5 -5 -5 -5 -4 -4 -4 -4 -4 -4 -3 -3 -3 -3 -2 -2 -2 -1 -------- Run | Yrd Mat Min Exi Min Mat Fac Low Low Fac Low Low Dat Pro Fac Ext Cet Arc Fac Was Fac Upp Upp Zhi Pro Res Arm Lab Res Qua Sec Acc Hostile Shots Fired 1787 | . 13 7 . 5 63 165 14 34 68 13 49 3 65 360 50 15 . 29 . 24 37 22 . . 107 8 . . 65 375 196 Missed 613 | . 4 1 . 1 19 52 3 10 22 3 14 . 16 107 18 4 . 16 . 12 16 4 . . 52 3 . . 26 126 84 Hits 1174 | . 9 6 . 4 44 113 11 24 46 10 35 3 49 253 32 11 . 13 . 12 21 18 . . 55 5 . . 39 249 112 Melee 11 | . . . . . . . 1 . 3 . . . 2 1 . . . . . . 4 . . . . . . . . . . Projectile 1163 | . 9 6 . 4 44 113 10 24 43 10 35 3 47 252 32 11 . 13 . 12 17 18 . . 55 5 . . 39 249 112 Critical Strikes 55 | . . . . . 3 1 . 3 1 . . . 2 11 3 5 . . . . . . . . 2 . . . 4 14 6 Actively Blocked 16 | . . . . . 1 . . . . . . . . . . . . . . . . . . . 1 . . . . 14 . Part Disruptions 2 | . . . . . . . . . . . . . . 1 . . . . . . . . . . . . . . . 1 . Damage Taken 22471 | . 100 102 . 62 683 1446 174 358 1060 157 815 193 1078 4618 754 396 . 253 . 240 196 262 . . 772 80 . . 716 5709 2247 Core 4898 | . 23 17 . . 77 397 17 207 111 . 30 50 173 540 10 27 . 32 . . 13 30 . . 32 64 . . 24 1620 1404 Absorbed by Shields 1176 | . . . . . . 12 . . . . . . . . 193 13 . . . . 71 10 . . 121 11 . . 126 619 . Redirected to Shielding 271 | . . . . . 55 70 . . . . . . . . . . . . . . . . . . 146 . . . . . . Regen/Repaired (Parts) 865 | . . . . . . . . . . . . . . . . . . 4 . . . . 26 42 70 48 76 . 54 545 . Core Remaining (%) 62 | 100 . . . 84 86 . . 11 . . . . 57 . . . 42 . . . . . . 93 . . 83 . . 3 . Volleys Fired 320 | 5 9 1 . 7 52 10 . . . . . . 16 89 27 5 1 18 . 15 22 7 . 4 5 . . 1 9 17 . Largest 3 | 2 2 2 . 2 3 1 . . . . . . 2 2 3 3 2 3 . 3 3 3 . 2 2 . . 2 2 1 . Hottest 243 | 100 100 100 . 100 171 30 . . . . . . 180 109 243 243 70 180 . 145 115 115 . 75 75 . . 80 80 40 . Shots Fired 742 | 10 18 2 . 14 158 15 6 3 69 9 18 . 21 120 65 17 2 25 . 39 58 21 . 8 8 . . 2 17 17 . Gun 512 | 10 18 2 . 14 127 . . . . . . . . 116 30 5 2 25 . 39 58 21 . 8 8 . . 2 17 10 . Cannon 212 | . . . . . 31 5 6 3 69 9 18 . 21 3 35 12 . . . . . . . . . . . . . . . Launcher 17 | . . . . . . 10 . . . . . . . . . . . . . . . . . . . . . . . 7 . Special 1 | . . . . . . . . . . . . . . 1 . . . . . . . . . . . . . . . . . Kinetic 370 | . . . . . 31 5 6 3 69 9 18 . . 77 12 1 2 11 . 31 58 21 . 8 8 . . . . . . Thermal 259 | 10 18 2 . 14 127 . . . . . . . 21 28 13 4 . 14 . 8 . . . . . . . . . . . Explosive 17 | . . . . . . 10 . . . . . . . . . . . . . . . . . . . . . . . 7 . Electromagnetic 95 | . . . . . . . . . . . . . . 14 40 12 . . . . . . . . . . . 2 17 10 . Robot Hit Streak 20 | 4 9 3 . 8 11 5 11 14 20 3 16 . 10 14 6 2 2 6 . 9 4 5 . 1 4 . . 1 3 2 . Robot Miss Streak 7 | 1 2 . . 3 6 1 . . 3 1 1 . 5 6 2 4 . 3 . 4 3 3 . 4 5 . . 2 2 7 . Penetration Max 2 | . . . . . . . . . . . . . . 1 1 . . . . . 1 . . . . . . . 1 2 . Secondary Targets 7 | . . . . . . . . . . . . . . 2 . . . . . 1 2 1 . . . . . . 1 . . Max Gunslinging Chain 1 | . . . . . . . . . . . . . . 1 . . . . . 1 1 1 . . . . . . 1 . . Autonomous 142 | . . . . . 31 5 6 3 69 9 19 . . . . . . . . . . . . . . . . . . . . Shots Hit Robots 581 | 8 12 2 . 8 94 74 7 8 59 6 18 3 14 91 37 6 1 17 . 25 31 13 . 2 18 . . 3 16 8 . Core Hits 294 | 2 4 1 . 3 36 45 2 1 29 3 3 2 11 49 19 3 1 7 . 12 14 7 . 1 7 . . 2 15 7 8 Critical Kills 11 | . . . . . . . . . . . . . . . . . 1 1 . 1 4 3 . 1 . . . . . . . Critical Parts Destroyed 14 | . . . . . . . . . . . . . . 2 . . . 1 . 3 4 2 . . 2 . . . . . . Critical Strikes 51 | . 1 . . . 4 8 . . 6 . 2 . . 4 . . 1 3 . 4 8 5 . 1 4 . . . . . . Burn 5 | . 1 . . . 3 . . . . . . . . 1 . . . . . . . . . . . . . . . . . Destroy 26 | . . . . . . . . . . . . . . 2 . . 1 3 . 4 8 5 . 1 2 . . . . . . Blast 9 | . . . . . 1 1 . . 5 . 2 . . . . . . . . . . . . . . . . . . . . Sever 9 | . . . . . . 7 . . 1 . . . . 1 . . . . . . . . . . . . . . . . . Impale 2 | . . . . . . . . . . . . . . . . . . . . . . . . . 2 . . . . . . Melee Attacks 214 | . . . . . . 84 1 8 5 . 2 6 . 25 . . . . . . . . . . 15 9 3 6 23 27 . Impact . | . . . . . . . . . . . . . . . . . . . . . . . . . . . . . . . . Slashing 158 | . . . . . . 84 1 8 5 . 2 6 . 25 . . . . . . . . . . . . . . . 27 . Piercing 56 | . . . . . . . . . . . . . . . . . . . . . . . . . 15 9 3 6 23 . . Sneak Attacks 36 | . . . . . . 21 . . 3 . . 1 . 3 . . . . . . . . . . 7 . . . . 1 . Combat Hostiles 1 | . . . . . . . . . . . . . . . . . . . . . . . . . 1 . . . . . . Follow-up Attacks 1 | . . . . . . 1 . . . . . . . . . . . . . . . . . . . . . . . . . Damage Inflicted 29953 | 99 149 26 . 100 3491 4984 557 437 5789 517 1510 236 1094 3644 1352 267 33 504 . 1483 497 201 . 17 1184 . . 96 626 916 144 Guns 6558 | 99 149 26 . 100 1321 . . . . . . . . 2230 649 89 33 504 . 501 497 201 . 17 105 . . 3 30 4 . Cannons 11996 | . . . . . 2170 467 509 240 4935 517 1467 . 736 74 703 178 . . . . . . . . . . . . . . . Explosions 3336 | . . . . . . 511 . . 551 . . . 358 327 . . . . . 982 . . . . . . . . 260 347 . Melee 7802 | . . . . . . 3906 48 197 303 . 43 236 . 1013 . . . . . . . . . . 1079 . . 93 336 548 . Ramming 261 | . . . . . . 100 . . . . . . . . . . . . . . . . . . . . . . . 17 144 Kinetic 13730 | . . . . . 2170 467 509 240 4935 517 1467 . . 1489 417 41 33 257 . 368 497 201 . 17 105 . . . . . . Thermal 5412 | 99 149 26 . 100 1321 . . . 237 . . . 1094 534 182 48 . 247 . 1115 . . . . . . . . 260 . . Explosive 1499 | . . . . . . 511 . . 314 . . . . 327 . . . . . . . . . . . . . . . 347 . Electromagnetic 1249 | . . . . . . . . . . . . . . 281 753 178 . . . . . . . . . . . 3 30 4 . Impact . | . . . . . . . . . . . . . . . . . . . . . . . . . . . . . . . . Slashing 6294 | . . . . . . 3906 48 197 303 . 43 236 . 1013 . . . . . . . . . . . . . . . 548 . Piercing 1508 | . . . . . . . . . . . . . . . . . . . . . . . . . 1079 . . 93 336 . . Highest Corruption 78 | . . . . . . 7 7 9 5 5 5 5 11 23 42 78 78 . . 2 2 2 2 2 2 2 2 . 3 47 16 Average Corruption 15 | . . . . . . 4 7 7 1 5 5 5 10 11 39 69 78 . . 1 2 2 2 2 2 2 2 . 2 12 7 Corruption Purged . | . . . . . . . . . . . . . . . . . . . . . . . . . . . . . . . . Corruption Blocked . | . . . . . . . . . . . . . . . . . . . . . . . . . . . . . . . . Effects 310 | . . . . . . 17 15 13 7 10 8 10 15 31 86 37 6 . . 1 4 4 1 . 5 2 4 . 1 26 7 Message Errors 84 | . . . . . . 4 4 2 3 5 . 2 4 10 28 5 4 . . . . . . . 2 . . . . 8 3 Matter Fused 71 | . . . . . . 5 2 5 1 . 4 1 4 6 19 10 2 . . . . 3 . . 1 . 1 . 1 5 1 Heat Flow Errors 30 | . . . . . . 2 1 2 1 2 2 2 2 3 4 6 . . . . . . . . . . . . . 2 1 Energy Discharges 37 | . . . . . . 1 . 1 1 1 1 2 1 3 13 4 . . . . 2 . . . 1 1 3 . . . 2 Parts Rejected 4 | . . . . . . . . 1 . . . . . 1 1 . . . . . . . . . . . . . . 1 . Parts Fused 4 | . . . . . . . . . . 1 . . 1 . . 1 . . . . . 1 . . . . . . . . . Data Loss (minor) 35 | . . . . . . 2 4 1 1 1 1 2 . 2 11 4 . . . 1 1 . 1 . 1 . . . . 2 . Data Loss (major) 13 | . . . . . . 3 2 . . . . 1 1 1 1 1 . . . . 1 . . . . 1 . . . 1 . Misfires 5 | . . . . . . . . . . . . . . 1 2 2 . . . . . . . . . . . . . . . Alerts 10 | . . . . . . . 2 1 . . . . 1 . 1 1 . . . . . . . . . . . . . 4 . Misdirections 8 | . . . . . . . . . . . . . . 1 2 2 . . . . . . . . . . . . . 3 . Weapon Failures 9 | . . . . . . . . . . . . . 1 3 4 1 . . . . . . . . . . . . . . . Overload Shots . | . . . . . . . . . . . . . . . . . . . . . . . . . . . . . . . . Overflow Damage 3928 | . . . . . 253 866 76 62 1360 117 98 . 57 256 . . . . . 79 . . . . 418 . . . 43 242 1 Projectiles 2102 | . . . . . 253 167 76 22 1313 117 98 . 17 39 . . . . . . . . . . . . . . . . . Explosions 221 | . . . . . . 5 . . 47 . . . 40 . . . . . . 79 . . . . . . . . 43 7 . Melee 1605 | . . . . . . 694 . 40 . . . . . 217 . . . . . . . . . . 418 . . . . 235 1 Knockbacks 33 | . . . . . 9 3 2 1 18 . . . . . . . . . . . . . . . . . . . . . . Impact . | . . . . . . . . . . . . . . . . . . . . . . . . . . . . . . . . Kinetic 29 | . . . . . 8 3 2 1 15 . . . . . . . . . . . . . . . . . . . . . . Secondary 4 | . . . . . 1 . . . 3 . . . . . . . . . . . . . . . . . . . . . . Self-Inflicted Damage 623 | . . . . . . 48 . . 41 . . . 98 . . . . . . . . . . . . . . . . 377 59 Shots 9 | . . . . . . . . . 1 . . . 2 . . . . . . . . . . . . . . . . 6 . Rammed 61 | . . . . . . 7 . . . . . . . . . . . . . . . . . . . . . . . 2 52 Targets Rammed 61 | . . . . . . 7 . . . . . . . . . . . . . . . . . . . . . . . 2 52 Kicked . | . . . . . . . . . . . . . . . . . . . . . . . . . . . . . . . . Crushed . | . . . . . . . . . . . . . . . . . . . . . . . . . . . . . . . . Highest Temperature 593 | 195 394 63 . 231 471 261 118 161 229 257 255 120 159 111 326 593 . 131 . 290 228 7 . . . . . . . 198 80 Average Temperature 108 | 99 196 32 . 93 124 126 60 77 120 118 122 61 55 15 111 164 . 60 . 112 76 5 . . . . . . . 53 80 Received Heat Transfer 2679 | . 54 51 . 36 288 429 90 . 246 9 135 . 306 252 433 27 . 21 . . . . . . 54 15 . . 6 191 36 Effects 12 | . 1 . . . 4 . . . . . . . . . . 4 . . . . 3 . . . . . . . . . . Shutdowns 2 | . 1 . . . 1 . . . . . . . . . . . . . . . . . . . . . . . . . . Energy Bleed 1 | . . . . . 1 . . . . . . . . . . . . . . . . . . . . . . . . . . Interference 5 | . . . . . 2 . . . . . . . . . . . . . . . 3 . . . . . . . . . . Damage (major) 4 | . . . . . . . . . . . . . . . . 4 . . . . . . . . . . . . . . . Siege Activations . | . . . . . . . . . . . . . . . . . . . . . . . . . . . . . . . . Martial Activations . | . . . . . . . . . . . . . . . . . . . . . . . . . . . . . . . . Shielding Activations . | . . . . . . . . . . . . . . . . . . . . . . . . . . . . . . . . Robots Disrupted 5 | . . . . . . . . . . . . . . . . . . . . . . . . . . . . . 4 1 . Combat Hostiles 5 | . . . . . . . . . . . . . . . . . . . . . . . . . . . . . 4 1 . Robots Corrupted 3 | . . . . . . . . . . . . . . 1 1 1 . . . . . . . . . . . . . . . Combat Hostiles 2 | . . . . . . . . . . . . . . . 1 1 . . . . . . . . . . . . . . . Parts Fried 18 | . . . . . . 1 . . 3 . . . . 6 7 1 . . . . . . . . . . . . . . . Impact Corruptions 5 | . . . . . . 2 . . 2 . . . . . . . . . . . . . . . . . . . . . 1 Robots Melted 1 | . . . . . 1 . . . . . . . . . . . . . . . . . . . . . . . . . . Combat Hostiles 1 | . . . . . 1 . . . . . . . . . . . . . . . . . . . . . . . . . . Parts Melted 8 | . 1 . . 1 4 . . 1 . . . . . . . . . . . 1 . . . . . . . . . . . Heat Transferred 7000 | 296 518 74 . 296 2812 . . . 250 . . . 250 777 259 74 . 296 . 948 . . . . . . . . 150 . . Parts Sabotaged . | . . . . . . . . . . . . . . . . . . . . . . . . . . . . . . . . Parts Stolen 4 | . . . . . . . 1 . . . . . . . . . . . . . 3 . . . . . . . . . . Parts Stripped . | . . . . . . . . . . . . . . . . . . . . . . . . . . . . . . . . Power Chain Reactions 3 | . . . . . . . . . . . . . 2 . . . . . . . . . . . . . . . 1 . . Alert | -11 -10 -10 -10 -9 -8 -7 -7 -7 -6 -6 -6 -6 -5 -5 -5 -5 -5 -4 -4 -4 -4 -4 -4 -3 -3 -3 -3 -2 -2 -2 -1 ------- Run | Yrd Mat Min Exi Min Mat Fac Low Low Fac Low Low Dat Pro Fac Ext Cet Arc Fac Was Fac Upp Upp Zhi Pro Res Arm Lab Res Qua Sec Acc Maximum Alert Level 3 | . . . . . . 2 . . 2 . . . . 1 2 1 . . . 3 . . . . 1 . . . . . . Low Security (%) 77 | 100 100 100 . 100 100 34 . . 56 . . . . 91 75 20 100 100 100 5 . . . . 99 100 . 100 100 100 100 Level 1 15 | . . . . . . 61 . . 21 . . . . 8 15 79 . . . 3 . . . . . . . . . . . Level 2 6 | . . . . . . 4 . . 22 . . . . . 8 . . . . 75 . . . . . . . . . . . Level 3 . | . . . . . . . . . . . . . . . . . . . . 15 . . . . . . . . . . . Level 4 . | . . . . . . . . . . . . . . . . . . . . . . . . . . . . . . . . Level 5 . | . . . . . . . . . . . . . . . . . . . . . . . . . . . . . . . . High Security . | . . . . . . . . . . . . . . . . . . . . . . . . . . . . . . . . Max Security . | . . . . . . . . . . . . . . . . . . . . . . . . . . . . . . . . Peak Influence 823 | 5 40 . . 35 194 454 . . 445 . . . . 266 416 301 123 192 63 823 . . . . 206 189 . 16 149 180 34 Initial 224 | . . . . . . 20 . . 25 . . . . . 93 224 81 31 63 . . . . . 150 107 . . . 60 16 Average 131 | . 13 . . 4 88 212 . . 204 . . . . 62 147 230 86 52 22 573 . . . . 138 147 . 3 90 82 3 Influence Increases 8435 | 5 50 . . 45 605 1030 65 80 767 110 95 20 180 638 864 382 150 344 . 1276 120 120 . 5 434 177 . 29 309 486 49 Destroy 0b10 Robot/C 3620 | . 40 . . 20 360 340 40 60 420 100 60 20 160 360 460 160 80 160 . 420 80 80 . . 40 20 . . 80 40 20 Destroy 0b10 Robot/NC 410 | 5 . . . . 65 120 . . 45 . . . . 60 30 10 . 5 . 20 . . . 5 35 . . 5 . 5 . Destroy Leader 692 | . 10 . . 10 98 82 10 20 94 10 20 . 20 88 42 . . 32 . 82 10 10 . . 12 10 . 2 10 20 . Allied During Kill 874 | . . . . . . . . . . . . . . . 273 164 64 50 . 309 . . . . . . . . . . 14 Successful Hack 235 | . . . . . 32 21 . . . . . . . 16 26 8 . 16 . 46 . . . . . 26 . 16 18 10 . Select Force Hacks 60 | . . . . . . 60 . . . . . . . . . . . . . . . . . . . . . . . . . Disable Machine 780 | . . . . . 15 60 . . 150 . . . . 45 15 . . 30 . 255 . . . . . 15 . . 105 90 . Destroy Structure 489 | . . . . . 5 17 . . 58 . . . . 24 18 40 6 36 . 144 . . . . 2 16 . 6 36 81 . Advance Influence 150 | . . . . . . . . . . . . . . . . . . . . . . . . . 150 . . . . . . Partial Spotted 165 | . . . . . . 105 . . . . . . . . . . . . . . . . . . 30 . . . 30 . . Lose Combat Pursuer 960 | . . . . 15 30 225 15 . . . 15 . . 45 . . . 15 . . 30 30 . . 165 90 . . 30 240 15 Influence Decreases 8435 | 5 50 . . 45 559 622 401 156 384 420 195 35 180 447 653 580 263 253 182 490 501 188 337 5 228 209 174 29 200 568 76 Entered New Map 2048 | . . . . . . 26 169 23 17 158 23 15 . . 98 178 123 60 119 . 291 78 337 . . 99 174 . . 49 11 Time Decay 4979 | 5 50 . . 45 559 486 222 133 357 262 142 20 100 307 525 262 60 129 63 190 180 110 . 5 198 70 . 29 170 269 31 Lost Part 780 | . . . . . . 110 10 . 10 . 30 . 80 140 30 20 . . . 10 30 . . . 30 . . . 30 250 . Lost Ally 628 | . . . . . . . . . . . . . . . . 120 80 64 . 290 . . . . . 40 . . . . 34 Squads Dispatched 46 | . 1 . . . 3 8 . . 5 . . . . 7 . . . 2 . 6 . . . . 5 . . 1 2 5 1 Investigation 11 | . 1 . . . . 2 . . 2 . . . . 1 . . . 2 . 2 . . . . 1 . . . . . . Extermination 11 | . . . . . . 3 . . 2 . . . . 2 . . . . . . . . . . . . . . 1 2 1 Reinforcement 13 | . . . . . 3 2 . . 1 . . . . 2 . . . . . . . . . . 3 . . 1 1 . . Assault 1 | . . . . . . . . . . . . . . . . . . . . 1 . . . . . . . . . . . Garrison 4 | . . . . . . 1 . . . . . . . . . . . . . 3 . . . . . . . . . . . Intercept 6 | . . . . . . . . . . . . . . 2 . . . . . . . . . . 1 . . . . 3 . Searches Triggered . | . . . . . . . . . . . . . . . . . . . . . . . . . . . . . . . . Construction Impeded 2 | . . . . . 1 . . . 1 . . . . . . . . . . . . . . . . . . . . . . Haulers Reinforced 3 | . . . . . . 1 . . . . . . . 1 . . . . . . . . . . . . . . 1 . . Active Scanning Responses . | . . . . . . . . . . . . . . . . . . . . . . . . . . . . . . . . Cargo Convoy Interrupts . | . . . . . . . . . . . . . . . . . . . . . . . . . . . . . . . . Stealth | -11 -10 -10 -10 -9 -8 -7 -7 -7 -6 -6 -6 -6 -5 -5 -5 -5 -5 -4 -4 -4 -4 -4 -4 -3 -3 -3 -3 -2 -2 -2 -1 --------- Run | Yrd Mat Min Exi Min Mat Fac Low Low Fac Low Low Dat Pro Fac Ext Cet Arc Fac Was Fac Upp Upp Zhi Pro Res Arm Lab Res Qua Sec Acc Distress Signals 20 | . 2 . . . 2 1 . . . . . . . 1 1 2 . 1 . 1 . . . . 4 1 . . . 3 1 Communications Jammed 74 | . . . . . . 8 . . . . . . . 45 . . . 5 . . . . . . . . . 15 1 . . Distress Signals 73 | . . . . . . 7 . . . . . . . 45 . . . 5 . . . . . . . . . 15 1 . . Times Spotted 378 | . 2 5 . 2 37 42 7 3 34 5 6 4 9 35 23 11 3 13 . 12 10 5 . 1 24 10 . 2 12 35 26 Peak Tracking Total 14 | . 2 2 . 2 6 6 3 2 4 3 3 4 4 5 4 5 2 6 . 3 4 5 . 1 8 9 . 1 4 14 10 Tactical Retreats 40 | . . . . 1 2 8 1 . 2 . 1 . . 3 . . . 1 . . 2 1 . . 6 2 . . 1 8 1 Traps | -11 -10 -10 -10 -9 -8 -7 -7 -7 -6 -6 -6 -6 -5 -5 -5 -5 -5 -4 -4 -4 -4 -4 -4 -3 -3 -3 -3 -2 -2 -2 -1 ------- Run | Yrd Mat Min Exi Min Mat Fac Low Low Fac Low Low Dat Pro Fac Ext Cet Arc Fac Was Fac Upp Upp Zhi Pro Res Arm Lab Res Qua Sec Acc Traps Triggered 17 | . . . . . . 6 . . 4 . . . . 1 1 . . 1 . . . . . . 3 . . . 1 . . Indirectly . | . . . . . . . . . . . . . . . . . . . . . . . . . . . . . . . . Trap Hack Attempts . | . . . . . . . . . . . . . . . . . . . . . . . . . . . . . . . . Triggered . | . . . . . . . . . . . . . . . . . . . . . . . . . . . . . . . . Disarmed . | . . . . . . . . . . . . . . . . . . . . . . . . . . . . . . . . Reprogrammed . | . . . . . . . . . . . . . . . . . . . . . . . . . . . . . . . . Reused . | . . . . . . . . . . . . . . . . . . . . . . . . . . . . . . . . Traps Extracted . | . . . . . . . . . . . . . . . . . . . . . . . . . . . . . . . . Installed . | . . . . . . . . . . . . . . . . . . . . . . . . . . . . . . . . Triggered . | . . . . . . . . . . . . . . . . . . . . . . . . . . . . . . . . Machines | -11 -10 -10 -10 -9 -8 -7 -7 -7 -6 -6 -6 -6 -5 -5 -5 -5 -5 -4 -4 -4 -4 -4 -4 -3 -3 -3 -3 -2 -2 -2 -1 ---------- Run | Yrd Mat Min Exi Min Mat Fac Low Low Fac Low Low Dat Pro Fac Ext Cet Arc Fac Was Fac Upp Upp Zhi Pro Res Arm Lab Res Qua Sec Acc Machines Disabled 55 | . . . . . 1 4 . . 10 . . . . 3 2 . . 2 . 17 . . . . . 1 1 . 7 7 . Max in Single Turn 14 | . . . . . 1 1 . . 5 . . . . 1 1 . . 1 . 14 . . . . . 1 1 . 1 1 . Garrison Access 3 | . . . . . 1 2 . . . . . . . . . . . . . . . . . . . . . . . . . Machines Repaired . | . . . . . . . . . . . . . . . . . . . . . . . . . . . . . . . . Machines Dismantled . | . . . . . . . . . . . . . . . . . . . . . . . . . . . . . . . . Machines Sabotaged . | . . . . . . . . . . . . . . . . . . . . . . . . . . . . . . . . Overloaded Fab Kills . | . . . . . . . . . . . . . . . . . . . . . . . . . . . . . . . . Hacking | -11 -10 -10 -10 -9 -8 -7 -7 -7 -6 -6 -6 -6 -5 -5 -5 -5 -5 -4 -4 -4 -4 -4 -4 -3 -3 -3 -3 -2 -2 -2 -1 --------- Run | Yrd Mat Min Exi Min Mat Fac Low Low Fac Low Low Dat Pro Fac Ext Cet Arc Fac Was Fac Upp Upp Zhi Pro Res Arm Lab Res Qua Sec Acc Machines Accessed 77 | . 2 . 2 . 8 12 1 . 2 . . 4 . 6 6 1 . 5 . 7 . . 4 . 2 5 1 2 2 5 . Terminals 42 | . 1 . . . 7 4 1 . 1 . . . . 3 5 1 . 1 . 4 . . . . 1 4 . 2 2 5 . Fabricators 7 | . . . . . . 1 . . . . . . . 1 . . . 1 . 3 . . . . . 1 . . . . . Repair Stations 2 | . . . . . . . . . . . . . . 1 . . . 1 . . . . . . . . . . . . . Recycling Units 7 | . 1 . . . . 2 . . . . . . . 1 1 . . 2 . . . . . . . . . . . . . Scanalyzers 3 | . . . . . . 2 . . 1 . . . . . . . . . . . . . . . . . . . . . . Garrison Access 5 | . . . . . 1 3 . . . . . . . . . . . . . . . . . . 1 . . . . . . Total Hacks 236 | . 4 . 2 . 22 26 2 . 6 . . 30 . 17 23 1 . 14 . 26 . . 13 . 3 10 19 5 3 10 . Successful 150 | . . . 2 . 10 11 2 . 1 . . 30 . 12 17 1 . 6 . 17 . . 13 . . 4 19 1 1 3 . Failed 86 | . 4 . . . 12 15 . . 5 . . . . 5 6 . . 8 . 9 . . . . 3 6 . 4 2 7 . Catastrophic 15 | . 1 . . . 1 3 . . . . . . . 1 1 . . . . 1 . . . . 2 3 . . 1 1 . Database Lockouts . | . . . . . . . . . . . . . . . . . . . . . . . . . . . . . . . . Manual 85 | . . . 1 . 17 11 . . 3 . . . . 10 10 1 . 3 . 17 . . . . . 5 . 2 1 4 . Terminals 119 | . 3 . . . 21 10 2 . 3 . . . . 12 19 1 . 2 . 18 . . . . 1 9 . 5 3 10 . Fabricators 20 | . . . . . . 2 . . . . . . . 2 . . . 7 . 8 . . . . . 1 . . . . . Repair Stations 2 | . . . . . . . . . . . . . . 1 . . . 1 . . . . . . . . . . . . . Recycling Units 14 | . 1 . . . . 3 . . . . . . . 2 4 . . 4 . . . . . . . . . . . . . Scanalyzers 9 | . . . . . . 6 . . 3 . . . . . . . . . . . . . . . . . . . . . . Garrison Access 8 | . . . . . 1 5 . . . . . . . . . . . . . . . . . . 2 . . . . . . Terminal Hacks 100 | . . . 2 . 3 1 2 . . . . 30 . 5 14 1 . . . 3 . . 13 . . 2 19 1 1 3 . Record 38 | . . . 1 . . . 2 . . . . 11 . . . . . . . . . . 5 . . . 19 . . . . Part Schematic 18 | . . . . . . . . . . . . 13 . . . . . . . 1 . . 4 . . . . . . . . Robot Schematic 6 | . . . . . . . . . . . . 6 . . . . . . . . . . . . . . . . . . . Prototype ID Bank 9 | . . . . . . . . . . . . . . . 5 . . . . . . . 4 . . . . . . . . Open Door 3 | . . . . . . . . . . . . . . . 2 1 . . . . . . . . . . . . . . . Level Access Points 1 | . . . . . . . . . . . . . . . . . . . . . . . . . . . . . . 1 . Branch Access Points 1 | . . . . . . 1 . . . . . . . . . . . . . . . . . . . . . . . . . Locate Traps 1 | . . . . . . . . . . . . . . 1 . . . . . . . . . . . . . . . . . Dispatch Records 1 | . . . . . . . . . . . . . . 1 . . . . . . . . . . . . . . . . . Recall Investigation 2 | . . . . . . . . . . . . . . 2 . . . . . . . . . . . . . . . . . Hauler Manifests 2 | . . . . . . . . . . . . . . . 2 . . . . . . . . . . . . . . . . Registered Components 4 | . . . . . . . . . . . . . . 1 1 . . . . 1 . . . . . 1 . . . . . Registered Prototypes 2 | . . . . . . . . . . . . . . . 2 . . . . . . . . . . . . . . . . Zone Layout 10 | . . . . . 3 . . . . . . . . . 2 . . . . 1 . . . . . 1 . 1 1 1 . Proto ID Catalog 1 | . . . 1 . . . . . . . . . . . . . . . . . . . . . . . . . . . . Activate Exoskeleton 1 | . . . . . . . . . . . . . . . . . . . . . . . . . . . . . . 1 . Fabricator Hacks 9 | . . . . . . . . . . . . . . 1 . . . 3 . 5 . . . . . . . . . . . Load Schematic 4 | . . . . . . . . . . . . . . 1 . . . 1 . 2 . . . . . . . . . . . Build 5 | . . . . . . . . . . . . . . . . . . 2 . 3 . . . . . . . . . . . Repair Station Hacks . | . . . . . . . . . . . . . . . . . . . . . . . . . . . . . . . . Recycling Unit Hacks 7 | . . . . . . 2 . . . . . . . 1 2 . . 2 . . . . . . . . . . . . . Retrieve Components 7 | . . . . . . 2 . . . . . . . 1 2 . . 2 . . . . . . . . . . . . . Scanalyzer 3 | . . . . . . 2 . . 1 . . . . . . . . . . . . . . . . . . . . . . Insert Component 2 | . . . . . . 1 . . 1 . . . . . . . . . . . . . . . . . . . . . . Analyze 1 | . . . . . . 1 . . . . . . . . . . . . . . . . . . . . . . . . . Garrison Access Hacks 3 | . . . . . 1 2 . . . . . . . . . . . . . . . . . . . . . . . . . Seal Access 3 | . . . . . 1 2 . . . . . . . . . . . . . . . . . . . . . . . . . Unauthorized Hacks 28 | . . . . . 6 4 . . . . . . . 5 1 . . 1 . 9 . . . . . 2 . . . . . Terminals 24 | . . . . . 6 2 . . . . . . . 4 1 . . . . 9 . . . . . 2 . . . . . Assimilate 1 | . . . . . . . . . . . . . . . . . . . . 1 . . . . . . . . . . . Botnet 8 | . . . . . . 1 . . . . . . . 2 . . . . . 4 . . . . . 1 . . . . . Skim 15 | . . . . . 6 1 . . . . . . . 2 1 . . . . 4 . . . . . 1 . . . . . Fabricators 1 | . . . . . . . . . . . . . . 1 . . . . . . . . . . . . . . . . . Recompile 1 | . . . . . . . . . . . . . . 1 . . . . . . . . . . . . . . . . . Repair Stations 1 | . . . . . . . . . . . . . . . . . . 1 . . . . . . . . . . . . . Patch 1 | . . . . . . . . . . . . . . . . . . 1 . . . . . . . . . . . . . Recycling Units . | . . . . . . . . . . . . . . . . . . . . . . . . . . . . . . . . Scanalyzers 2 | . . . . . . 2 . . . . . . . . . . . . . . . . . . . . . . . . . Extract 2 | . . . . . . 2 . . . . . . . . . . . . . . . . . . . . . . . . . Garrison Access . | . . . . . . . . . . . . . . . . . . . . . . . . . . . . . . . . Data Cores Recovered 2 | . . . . . . . . . 1 . . . . . 1 . . . . . . . . . . . . . . . . Used . | . . . . . . . . . . . . . . . . . . . . . . . . . . . . . . . . Hacking Detections 50 | . 2 . . . 7 8 . . 2 . . . . 4 2 . . 3 . 7 . . . . 2 5 . 2 2 4 . Full Trace Events 7 | . 1 . . . . . . . 2 . . . . . . . . 1 . 2 . . . . 1 . . . . . . Feedback Events 1 | . . . . . . . . . 1 . . . . . . . . . . . . . . . . . . . . . . Corruption 1 | . . . . . . . . . 1 . . . . . . . . . . . . . . . . . . . . . . Feedback Blocked . | . . . . . . . . . . . . . . . . . . . . . . . . . . . . . . . . Robot Schematics Acquired 6 | . . . . . . . . . . . . 6 . . . . . . . . . . . . . . . . . . . Robots Built . | . . . . . . . . . . . . . . . . . . . . . . . . . . . . . . . . Authchips . | . . . . . . . . . . . . . . . . . . . . . . . . . . . . . . . . Time . | . . . . . . . . . . . . . . . . . . . . . . . . . . . . . . . . Total Robot Build Rating . | . . . . . . . . . . . . . . . . . . . . . . . . . . . . . . . . Part Schematics Acquired 25 | . . . . . . 7 . . . . . 13 . . . . . . . 1 . . 4 . . . . . . . . Parts Built 8 | . . . . . . . . . . . . . . . . . . 4 . 4 . . . . . . . . . . . Authchips . | . . . . . . . . . . . . . . . . . . . . . . . . . . . . . . . . Time 288 | . . . . . . . . . . . . . . . . . . 127 . 161 . . . . . . . . . . . Total Part Build Rating 62 | . . . . . . . . . . . . . . . . . . 32 . 30 . . . . . . . . . . . Parts Repaired . | . . . . . . . . . . . . . . . . . . . . . . . . . . . . . . . . Time . | . . . . . . . . . . . . . . . . . . . . . . . . . . . . . . . . Parts Recycled . | . . . . . . . . . . . . . . . . . . . . . . . . . . . . . . . . Recycled Matter . | . . . . . . . . . . . . . . . . . . . . . . . . . . . . . . . . Retrieved Matter . | . . . . . . . . . . . . . . . . . . . . . . . . . . . . . . . . Retrieved Components 23 | . . . . . . 2 . . . . . . . 2 13 . . 6 . . . . . . . . . . . . . Parts Scanalyzed 2 | . . . . . . 1 . . 1 . . . . . . . . . . . . . . . . . . . . . . Part Schematics Acquired 1 | . . . . . . 1 . . . . . . . . . . . . . . . . . . . . . . . . . Parts Damaged 1 | . . . . . . . . . 1 . . . . . . . . . . . . . . . . . . . . . . Bothacking | -11 -10 -10 -10 -9 -8 -7 -7 -7 -6 -6 -6 -6 -5 -5 -5 -5 -5 -4 -4 -4 -4 -4 -4 -3 -3 -3 -3 -2 -2 -2 -1 ------------ Run | Yrd Mat Min Exi Min Mat Fac Low Low Fac Low Low Dat Pro Fac Ext Cet Arc Fac Was Fac Upp Upp Zhi Pro Res Arm Lab Res Qua Sec Acc Used RIF Installer . | . . . . . . . . . . . . . . . . . . . . . . . . . . . . . . . . Robots Hacked 1 | . . . . . . . . . . . . . . 1 . . . . . . . . . . . . . . . . . Non-combat 1 | . . . . . . . . . . . . . . 1 . . . . . . . . . . . . . . . . . Combat . | . . . . . . . . . . . . . . . . . . . . . . . . . . . . . . . . Robot Hacks Applied 1 | . . . . . . . . . . . . . . 1 . . . . . . . . . . . . . . . . . find_chute 1 | . . . . . . . . . . . . . . 1 . . . . . . . . . . . . . . . . . Relay Couplers Released . | . . . . . . . . . . . . . . . . . . . . . . . . . . . . . . . . Fabnet Peak Effective % . | . . . . . . . . . . . . . . . . . . . . . . . . . . . . . . . . Robots Rewired 14 | . . . . . . . . . . . . . . . 12 . . . . . . . . . . 2 . . . . . Allies Hacked . | . . . . . . . . . . . . . . . . . . . . . . . . . . . . . . . . Hacks Repelled 1 | . . . . . . . . . . . . . . . . . . . . 1 . . . . . . . . . . . Allies | -11 -10 -10 -10 -9 -8 -7 -7 -7 -6 -6 -6 -6 -5 -5 -5 -5 -5 -4 -4 -4 -4 -4 -4 -3 -3 -3 -3 -2 -2 -2 -1 -------- Run | Yrd Mat Min Exi Min Mat Fac Low Low Fac Low Low Dat Pro Fac Ext Cet Arc Fac Was Fac Upp Upp Zhi Pro Res Arm Lab Res Qua Sec Acc Total Allies 48 | . . . . 1 . . . . . . . . . . 14 5 . . 20 . . . . . . 2 . . . . 6 Largest Group 20 | . . . . 1 1 . . . . . . . . . 13 13 8 4 20 20 . . . . . 2 . . . . 6 Highest-Rated Group 668 | . . . . 31 31 . . . . . . . . . 504 668 491 263 659 659 . . . . . 136 . . . . 85 Highest-Rated Ally 159 | . . . . 31 31 . . . . . . . . . 159 136 96 96 50 50 . . . . . 68 . . . . 15 Total Orders . | . . . . . . . . . . . . . . . . . . . . . . . . . . . . . . . . Ally Attacks 476 | . . . . . 5 . . . . . . 28 . . 147 94 25 27 . 119 . . . . . 2 . . . . 29 Total Damage 12259 | . . . . . 62 . . . . . . 1521 . . 3292 2136 586 743 . 3162 . . . . . 208 . . . . 549 Kills 66 | . . . . . . . . . . . . 4 . . 20 13 3 4 . 20 . . . . . 1 . . . . 1 Allies Corrupted 3 | . . . . . . . . . . . . . . . 1 . . . . 2 . . . . . . . . . . . Allies Melted 2 | . . . . . 1 . . . . . . . . . . . . . . 1 . . . . . . . . . . . Turrets Deployed 2 | . . . . . . . . . . . . 2 . . . . . . . . . . . . . . . . . . . Intel | -11 -10 -10 -10 -9 -8 -7 -7 -7 -6 -6 -6 -6 -5 -5 -5 -5 -5 -4 -4 -4 -4 -4 -4 -3 -3 -3 -3 -2 -2 -2 -1 ------- Run | Yrd Mat Min Exi Min Mat Fac Low Low Fac Low Low Dat Pro Fac Ext Cet Arc Fac Was Fac Upp Upp Zhi Pro Res Arm Lab Res Qua Sec Acc Active Infowar (turns) 8455 | . 157 115 388 356 748 1289 462 369 281 . . . . 1233 . . . 212 205 314 365 226 79 103 264 126 234 86 357 486 . Optics 1421 | . . . . . . 821 . . . . . . . . . . . . . . 295 226 79 . . . . . . . . Sensors 4963 | . . . . . . 198 459 367 281 . . . . 816 . . . 71 205 314 365 226 5 103 264 126 234 86 357 486 . Terrain 1 | . . . . . . . . . . . . . . . . . . 1 . . . . . . . . . . . . . Seismic 1764 | . 157 115 388 356 748 . . . . . . . . . . . . . . . . . . . . . . . . . . Cloaking 1352 | . . . . . . . 322 329 . . . . . . . . . . . . 111 223 5 103 66 43 . 86 64 . . Jamming 2457 | . . . . . . 534 . 2 . . . . . 896 . . . 211 205 278 . . . . . . . 84 247 . . Robot Analysis Total 151 | . . . . . . . . . . . . 151 . . . . . . . . . . . . . . . . . . . Derelict Logs Recovered 5 | . . . . 1 . . 1 . . . 1 . . . . . . . . . 1 1 . . . . . . . . . Drone Launches . | . . . . . . . . . . . . . . . . . . . . . . . . . . . . . . . . Drone Recoveries . | . . . . . . . . . . . . . . . . . . . . . . . . . . . . . . . . Exploration | -11 -10 -10 -10 -9 -8 -7 -7 -7 -6 -6 -6 -6 -5 -5 -5 -5 -5 -4 -4 -4 -4 -4 -4 -3 -3 -3 -3 -2 -2 -2 -1 ------------- Run | Yrd Mat Min Exi Min Mat Fac Low Low Fac Low Low Dat Pro Fac Ext Cet Arc Fac Was Fac Upp Upp Zhi Pro Res Arm Lab Res Qua Sec Acc Turns Passed 15162 | 124 157 115 388 356 1856 1295 462 470 823 566 335 378 365 1398 1517 565 123 349 205 393 365 226 85 108 406 143 234 86 357 622 290 Spaces Moved 11805 | 69 61 82 300 205 716 1208 260 182 443 345 176 242 261 861 832 320 62 280 232 335 324 194 171 297 750 326 216 207 580 910 358 Core 556 | 16 . . . . . . . 3 . . . . . . . . . . . . . . . . . . . . . 213 324 Treads 1829 | 53 61 30 112 205 193 . . . 411 345 176 103 19 . . 121 . . . . . . . . . . . . . . . Legs 1866 | . . . . . 523 1 . . . . . . . 477 832 33 . . . . . . . . . . . . . . . Wheels 240 | . . 52 188 . . . . . . . . . . . . . . . . . . . . . . . . . . . . Hover 6727 | . . . . . . 1207 260 113 . . . 139 171 . . 166 62 280 232 335 324 194 171 297 750 326 216 207 580 697 . Flight 587 | . . . . . . . . 66 32 . . . 71 384 . . . . . . . . . . . . . . . . 34 Fastest Speed 17 | 50 160 100 100 160 120 40 111 117 117 160 160 52 106 27 120 55 97 40 40 28 32 38 28 28 23 28 28 28 17 28 37 Average Speed 83 | 134 160 121 122 160 166 50 126 236 156 160 162 111 111 113 120 110 97 46 40 33 37 38 33 28 27 28 28 28 28 40 48 Slowest Speed 550 | 160 160 160 160 160 320 240 300 550 160 160 240 240 260 190 120 160 97 97 40 108 102 38 102 89 89 28 28 28 89 150 50 Overloaded Moves 22 | . . . . . . . . . . . . . . . . . . . . . . . . . . . . . 22 . . Propulsion Burnouts . | . . . . . . . . . . . . . . . . . . . . . . . . . . . . . . . . Robots Hopped . | . . . . . . . . . . . . . . . . . . . . . . . . . . . . . . . . Potential Cave-ins 35 | . . . . . . . . . . . . . . . . . . . . . . . . . . . . . 1 34 . Cave-ins Triggered 4 | . . . . . . . . . . . . . . . . . . . . . . . . . . . . . . 4 . Teleports 5 | . . . . . . . . . . . . . . . . . . . . . . . . . . 1 . . . 2 2 Exploration Rate (%) 45 | 5 13 28 69 43 54 41 49 23 19 55 42 81 46 23 91 70 71 9 95 13 49 56 61 47 29 33 93 8 67 67 10 Regions Visited 31 Branch Regions 20 Pre-discovered Areas 35 | . . . 1 . 3 . . . . . . 27 . . . . . . . . 1 . 3 . . . . . . . . Known Exits Taken 24 | . . . . . 1 1 1 1 1 1 1 1 1 1 1 1 1 . . 1 1 1 1 1 1 1 1 1 1 1 . Unknown Exits Taken 5 | 1 1 1 1 1 . . . . . . . . . . . . . . . . . . . . . . . . . . . Scrap Searched 8 | . . . . . . . 1 1 . 2 . . . . . . . . . . 1 1 . 2 . . . . . . . Spaces Dug 26 | . . . . . . 6 . . 1 . . . . 6 . . . . . . . . . . 1 8 . 2 2 . . Terrain Destroyed 366 | . . . . . 4 21 . . 69 3 1 . 11 11 1 2 1 3 . 39 12 1 . 3 1 8 . 2 12 161 . Melee 26 | . . . . . . 6 . . 1 . . . . 6 . . . . . . . . . . 1 8 . 2 2 . . Projectile 46 | . . . . . 4 . . . 5 3 1 . 3 1 1 2 1 3 . 7 11 1 . 3 . . . . . . . AOE 293 | . . . . . . 15 . . 63 . . . 8 4 . . . . . 32 . . . . . . . . 10 161 . Terrain Rammed . | . . . . . . . . . . . . . . . . . . . . . . . . . . . . . . . . Walls Destroyed . | . . . . . . . . . . . . . . . . . . . . . . . . . . . . . . . . Machines Disabled . | . . . . . . . . . . . . . . . . . . . . . . . . . . . . . . . . Actions | -11 -10 -10 -10 -9 -8 -7 -7 -7 -6 -6 -6 -6 -5 -5 -5 -5 -5 -4 -4 -4 -4 -4 -4 -3 -3 -3 -3 -2 -2 -2 -1 --------- Run | Yrd Mat Min Exi Min Mat Fac Low Low Fac Low Low Dat Pro Fac Ext Cet Arc Fac Was Fac Upp Upp Zhi Pro Res Arm Lab Res Qua Sec Acc Total 16326 | 90 103 94 322 219 1286 1796 396 208 569 359 222 348 311 1121 1299 522 122 472 343 588 516 329 199 314 920 364 385 222 727 1087 473 Wait 2945 | . 29 10 . 8 440 344 109 8 68 15 39 62 16 68 351 126 60 152 105 201 150 126 . 8 110 8 148 5 61 80 38 Move 11771 | 68 60 81 299 204 715 1207 259 181 442 344 175 241 260 860 831 319 61 280 231 334 323 193 170 296 749 325 215 206 579 905 358 Hop . | . . . . . . . . . . . . . . . . . . . . . . . . . . . . . . . . Pick Up 278 | 11 2 . 14 . 24 25 10 1 18 . 1 10 4 19 27 18 . 6 1 13 6 1 6 3 11 3 6 . 18 8 12 Fast Attach 97 | . . . . . 10 11 1 1 4 . 2 6 . 15 4 7 . 2 2 1 1 . 8 . . 3 4 . 2 13 . Attach 168 | 6 1 . . . 3 23 1 6 13 . 1 8 9 14 11 8 . 4 . 6 3 1 1 . 7 2 2 2 12 11 13 Detach 39 | . . . . . 1 12 1 2 6 . . 2 3 3 . . . . . 1 . . . . 1 1 . . 2 4 . Swap 93 | . 1 2 3 . 8 8 4 . 2 . . 2 1 8 4 14 . 5 1 3 7 1 2 1 3 2 . 2 5 4 . Drop 248 | . 1 . 6 . 33 30 10 1 11 . 2 11 2 20 9 25 . 5 3 14 4 . 12 2 8 6 7 . 16 10 . Fire 320 | 5 9 1 . 7 52 10 . . . . . . 16 89 27 5 1 18 . 15 22 7 . 4 5 . . 1 9 17 . Melee 212 | . . . . . . 82 1 8 5 . 2 6 . 25 . . . . . . . . . . 15 9 3 6 23 27 . Ram 63 | . . . . . . 7 . . . . . . . . . . . . . . . . . . . . . . . 4 52 Kick . | . . . . . . . . . . . . . . . . . . . . . . . . . . . . . . . . Crush . | . . . . . . . . . . . . . . . . . . . . . . . . . . . . . . . . Escape Stasis 52 | . . . . . . 37 . . . . . . . . . . . . . . . . . . 11 . . . . 4 . Rewire 40 | . . . . . . . . . . . . . . . 35 . . . . . . . . . . 5 . . . . . Trap . | . . . . . . . . . . . . . . . . . . . . . . . . . . . . . . . . Miscellaneous . | . . . . . . . . . . . . . . . . . . . . . . . . . . . . . . . . Route ------- -11/Scrapyard -10/Materials -10/Mines (discovered 2 exits: [*Mat] / *Exi) -10/Exiles -9/Mines -8/Materials (discovered 3 exits: *Fac x2 / [*Sto]) -7/Factory (discovered 2 exits: *Low x2) -7/Lower Caves -7/Lower Caves -6/Factory (discovered 3 exits: *Fac x2 / *Low) -6/Lower Caves -6/Lower Caves -6/Data Miner -5/Proximity Caves -5/Factory (discovered 4 exits: *Fac / Upp / *Ext x2) -5/Extension (discovered 2 exits: *Fac / *Cet) -5/Cetus (discovered 2 exits: *Fac / *Arc) -5/Archives (discovered 2 exits: *Fac / [*Hub]) -4/Factory -4/Waste -4/Factory -4/Upper Caves -4/Upper Caves (discovered 2 exits: *Res / *Zhi) -4/Zhirov -3/Proximity Caves -3/Research (discovered 2 exits: *Res / *Arm) -3/Armory -3/Lab -2/Research -2/Quarantine (discovered 3 exits: *Acc / *Sec / *Frg) -2/Section 7 -1/Access History --------- Turn | Location | Event 8 | -11/Scrapyard | Discovered new exit (range 15) 125 | -11/Scrapyard | Entered Materials 126 | -10/Materials | Discovered new exit (range 16) 244 | -10/Materials | Met 8R-AWN 282 | -10/Materials | Entered Mines 285 | -10/Mines | Followed 8R-AWN into the Mines 302 | -10/Mines | Build established: Mutant 371 | -10/Mines | Discovered new exit (range 15) 383 | -10/Mines | Met a Derelict bent on vengeance 393 | -10/Mines | Discovered new exit (range 5) 397 | -10/Mines | Entered Exiles 425 | -10/Exiles | Welcomed by 8R-AWN 441 | -10/Exiles | Met EX-HEX 504 | -10/Exiles | Met EX-DEC 522 | -10/Exiles | Learned location of Zion (-7) 539 | -10/Exiles | Met EX-BIN 553 | -10/Exiles | Aligned with FarCom system 554 | -10/Exiles | Given EX-Vault access code 577 | -10/Exiles | Opened EX-Vault 582 | -10/Exiles | Found Deploy-a-Sentry 584 | -10/Exiles | Found Deploy-a-Sentry 586 | -10/Exiles | Found Deploy-a-Sentry 590 | -10/Exiles | Found Longsword +1 602 | -10/Exiles | Found AWS/Autocannon 632 | -10/Exiles | Warned to stay clear of 0b10 Research branches 772 | -10/Exiles | Discovered new exit (range 10) 785 | -10/Exiles | Stole three prototypes: AWS/Autocannon, Longsword +1, Deploy-a-Sentry 785 | -10/Exiles | Entered Mines 1067 | -9/Mines | Learned location of 1 exit from Materials 1117 | -9/Mines | Received a Mining Laser from a helpful Derelict 1122 | -9/Mines | Discovered new exit (range 10) 1141 | -9/Mines | Entered Materials 1141 | -8/Materials | Accompanied by 1 ally 1141 | -8/Materials | Evolved 4 slots: Propulsion x1, Utility x2, Weapon x1 1142 | -8/Materials | Identified exit to Factory 1623 | -8/Materials | Discovered new exit (range 16) 1625 | -8/Materials | Build established: Tank 2708 | -8/Materials | Discovered exit to Factory (range 17) 2802 | -8/Materials | Learned Storage security intel 2862 | -8/Materials | Learned 2 Storage zone layouts 2887 | -8/Materials | Learned Factory machine intel 2888 | -8/Materials | Learned location of Storage (-8) 2975 | -8/Materials | Learned Storage trap positions 2997 | -8/Materials | Entered Factory 2997 | -7/Factory | Evolved 2 slots: Propulsion x1, Utility x1 2998 | -7/Factory | Identified exit to Lower Caves 2999 | -7/Factory | Loaded intel: 277 machine locations 2999 | -7/Factory | FarCom data flow suspended 3291 | -7/Factory | Build established: Mutant 3568 | -7/Factory | Lost 4 parts (4n) 4218 | -7/Factory | Core integrity fell below 50% 4218 | -7/Factory | Garrison activated, responded to threat 4292 | -7/Factory | Entered Lower Caves 4292 | -7/Lower Caves | Spotted GL-79M(f) 4292 | -7/Lower Caves | Spotted SY-4ST(f) 4293 | -7/Lower Caves | Identified exit to Lower Caves 4293 | -7/Lower Caves | Deploy-a-Sentry stolen by Master Thief 4293 | -7/Lower Caves | Destroyed SY-4ST(f) 4294 | -7/Lower Caves | Encountered a Master Thief 4301 | -7/Lower Caves | Lost 3 parts (3n) 4475 | -7/Lower Caves | Entered a destroyed Warlord outpost 4653 | -7/Lower Caves | Learned 4 Factory zone layouts 4754 | -7/Lower Caves | Entered another Lower Caves area 5128 | -7/Lower Caves | Core integrity fell below 20% 5152 | -7/Lower Caves | Lost 4 parts (1n3u) 5198 | -7/Lower Caves | Discovered new exit (range 15) 5222 | -7/Lower Caves | Identified exit to Factory 5224 | -7/Lower Caves | Entered Factory 5224 | -6/Factory | Evolved 2 slots: Propulsion x1, Utility x1 5225 | -6/Factory | Identified exit to Lower Caves 5226 | -6/Factory | Identified exit to Factory 5528 | -6/Factory | Discovered exit to Factory (range 6) 5899 | -6/Factory | Assembled infested ambush trap array 5954 | -6/Factory | Destroyed 12 combat bots 6009 | -6/Factory | Spotted B-75 Beast 6015 | -6/Factory | Destroyed B-75 Beast 6047 | -6/Factory | Entered Lower Caves 6351 | -6/Lower Caves | Build established: Tank 6603 | -6/Lower Caves | Discovered new exit (range 5) 6608 | -6/Lower Caves | Identified exit to Lower Caves 6613 | -6/Lower Caves | Entered another Lower Caves area 6637 | -6/Lower Caves | Learned location of 1 exit from Factory 6724 | -6/Lower Caves | Spotted B-75 Beast 6756 | -6/Lower Caves | Destroyed B-75 Beast 6870 | -6/Lower Caves | AWS/Autocannon suddenly broke down 6937 | -6/Lower Caves | Discovered new exit (range 8) 6946 | -6/Lower Caves | Identified exit to Data Miner 6948 | -6/Lower Caves | Entered Data Miner 6949 | -6/Data Miner | Discovered new exit (range 6) 6979 | -6/Data Miner | Met Data Miner 7074 | -6/Data Miner | Learned location of Section 7 (-2) 7074 | -6/Data Miner | Acquired the access code to Warlord's prototype stash 7083 | -6/Data Miner | Received God Mode back door access code from Data Miner 7099 | -6/Data Miner | Destroyed Data Miner 7102 | -6/Data Miner | Found Prototype Hackware 7103 | -6/Data Miner | Found Prototype Hackware 7106 | -6/Data Miner | Interfaced with the Data Conduit 7109 | -6/Data Miner | DAS Turret deployed 7129 | -6/Data Miner | DAS Turret deployed 7168 | -6/Data Miner | Build established: Mutant 7226 | -6/Data Miner | Identified exit to Proximity Caves 7326 | -6/Data Miner | Entered Proximity Caves 7365 | -5/Proximity Caves | System corruption reached 10% 7421 | -5/Proximity Caves | Lost 9 parts (1p4n2u2w) 7607 | -5/Proximity Caves | Spotted B-75 Beast 7642 | -5/Proximity Caves | Lost 4 parts (2n1u1w) 7678 | -5/Proximity Caves | Discovered exit to Factory (range 16) 7691 | -5/Proximity Caves | Entered Factory 7691 | -5/Factory | Evolved 2 slots: Utility x2 7692 | -5/Factory | Identified exit to Extension 7693 | -5/Factory | Identified exit to Upper Caves 7694 | -5/Factory | Loaded intel: 261 machine locations 7775 | -5/Factory | Build established: Scavenger-Mutant 7822 | -5/Factory | Discovered new exit (range 6) 7827 | -5/Factory | Identified exit to Factory 8071 | -5/Factory | Found Quantum Capacitor 8468 | -5/Factory | Build established: Gladiator 8700 | -5/Factory | System corruption reached 10% 8757 | -5/Factory | Identified System Mapper 8762 | -5/Factory | Identified Ghost Barrier 8998 | -5/Factory | Intercept squad dispatched 9009 | -5/Factory | Spotted Tracker 9036 | -5/Factory | Spotted Combat Programmer 9045 | -5/Factory | Core integrity fell below 50% 9089 | -5/Factory | Entered Extension 9090 | -5/Extension | Loaded intel: 25 machine locations 9104 | -5/Extension | Lost 7 parts (1p2n2u2w) 9163 | -5/Extension | Rescued A7 9176 | -5/Extension | System corruption reached 30% 9260 | -5/Extension | Build established: Hacker-Mutant 9611 | -5/Extension | Build established: Wizard-Tank 9944 | -5/Extension | Spotted B-75 Beast 9962 | -5/Extension | Allies destroyed B-75 Beast 9965 | -5/Extension | Spotted B-75 Beast 9999 | -5/Extension | Allies destroyed B-75 Beast 10294 | -5/Extension | Rescued a captive Derelict 10407 | -5/Extension | Discovered exit to Factory (range 10) 10408 | -5/Extension | Discovered new exit (range 6) 10570 | -5/Extension | Identified exit to Cetus 10606 | -5/Extension | Entered Cetus 10606 | -5/Cetus | Accompanied by 13 allies (A7) 10607 | -5/Cetus | Loaded intel: 24 machine locations 10611 | -5/Cetus | Acquired a Cetus Manufacturing Module code from A7 10622 | -5/Cetus | Spotted Cetus Guard 10623 | -5/Cetus | Spotted Cetus Guard 10626 | -5/Cetus | Spotted Cetus Guard 10632 | -5/Cetus | Spotted Cetus Guard 10634 | -5/Cetus | Allies destroyed Cetus Guard 10642 | -5/Cetus | Destroyed Cetus Guard 10648 | -5/Cetus | Allies destroyed Cetus Guard 10652 | -5/Cetus | Allies destroyed Cetus Guard 10672 | -5/Cetus | Lost 3 allies 10703 | -5/Cetus | Allies destroyed A7 10705 | -5/Cetus | Extracted ID and sensor layout for unrecognized location from A7's data core 10734 | -5/Cetus | Lost 4 allies 10765 | -5/Cetus | Found Prototype Protection 10766 | -5/Cetus | Identified Med. Regenerative Plating 10847 | -5/Cetus | Started Cetus Manufacturing Module 10872 | -5/Cetus | Manufactured an Enhanced Grunt 10897 | -5/Cetus | Manufactured an Enhanced Grunt 10922 | -5/Cetus | Manufactured an Enhanced Grunt 10947 | -5/Cetus | Manufactured an Enhanced Grunt 10948 | -5/Cetus | Discovered new exit (range 16) 10972 | -5/Cetus | Manufactured an Enhanced Grunt 10992 | -5/Cetus | Spotted Cetus Guard 10998 | -5/Cetus | Spotted Cetus Guard 11000 | -5/Cetus | Spotted Cetus Guard 11000 | -5/Cetus | Spotted Cetus Guard 11009 | -5/Cetus | Allies destroyed Cetus Guard 11011 | -5/Cetus | Allies destroyed Cetus Guard 11015 | -5/Cetus | Allies destroyed Cetus Guard 11035 | -5/Cetus | Found Prototype Device 11040 | -5/Cetus | Lost 3 allies 11053 | -5/Cetus | Discovered exit to Factory (range 16) 11057 | -5/Cetus | Met Revision 17 11075 | -5/Cetus | Identified Exp. Thermal Shield 11123 | -5/Cetus | Identified exit to Archives 11171 | -5/Cetus | Entered Archives 11171 | -5/Archives | Accompanied by 8 allies 11172 | -5/Archives | Loaded intel: 8 machine locations 11252 | -5/Archives | Discovered new exit (range 15) 11263 | -5/Archives | Discovered exit to Factory (range 15) 11267 | -5/Archives | Lost 4 allies 11294 | -5/Archives | Entered Factory 11294 | -4/Factory | Accompanied by 4 allies 11294 | -4/Factory | Evolved 2 slots: Propulsion x1, Utility x1 11295 | -4/Factory | Loaded intel: 270 machine locations 11352 | -4/Factory | Build established: Hacker-Tank 11392 | -4/Factory | Fabricated Enh. Quantum Rifle (x2) 11459 | -4/Factory | Fabricated Imp. Linear Gravjet (x2) 11516 | -4/Factory | Lost 3 allies 11643 | -4/Factory | Manually triggered Chute Trap 11643 | -4/Factory | Sucked down chute 11643 | -4/Factory | Entered Waste 11644 | -4/Waste | Joined by Warlord forces that had cleared the area 11680 | -4/Waste | Found Prototype Device 11680 | -4/Waste | Identified Exp. Shock Absorption System 11686 | -4/Waste | Found Broken Point Singularity Launcher 11784 | -4/Waste | Discovered new exit (range 10) 11826 | -4/Waste | Build established: Scavenger-Skirmisher 11848 | -4/Waste | Identified exit to Factory 11848 | -4/Waste | Entered Factory 11848 | -4/Factory | Accompanied by 20 allies 11849 | -4/Factory | Loaded intel: 301 machine locations 11894 | -4/Factory | Murdered 4 allies 11929 | -4/Factory | Garrison activated, responded to threat 11943 | -4/Factory | Fabricated Imp. Linear Gravjet (x2) 11965 | -4/Factory | Lost 3 allies 12019 | -4/Factory | Discovered new exit (range 15) 12031 | -4/Factory | Identified exit to Upper Caves 12098 | -4/Factory | First assault squad dispatched 12111 | -4/Factory | Fabricated Hyp. Railgun (x2) 12230 | -4/Factory | Lost 3 allies 12241 | -4/Factory | Entered Upper Caves 12241 | -4/Upper Caves | Spotted T7-O7Y(f) 12241 | -4/Upper Caves | Spotted UA-UFV(f) 12243 | -4/Upper Caves | Encountered a Master Thief 12243 | -4/Upper Caves | Encountered a Master Thief 12245 | -4/Upper Caves | Spotted OO-21B(f) 12246 | -4/Upper Caves | Encountered a Master Thief 12247 | -4/Upper Caves | Com. Particle Reactor stolen by Master Thief 12251 | -4/Upper Caves | Destroyed OO-21B(f) 12267 | -4/Upper Caves | Destroyed UA-UFV(f) 12300 | -4/Upper Caves | Destroyed T7-O7Y(f) 12600 | -4/Upper Caves | Discovered new exit (range 5) 12605 | -4/Upper Caves | Identified exit to Upper Caves 12606 | -4/Upper Caves | Entered another Upper Caves area 12607 | -4/Upper Caves | Build established: Scavenger-Scout 12610 | -4/Upper Caves | Discovered new exit (range 6) 12636 | -4/Upper Caves | Identified exit to Research 12822 | -4/Upper Caves | Discovered new exit (range 9) 12825 | -4/Upper Caves | Identified exit to Zhirov 12832 | -4/Upper Caves | Entered Zhirov 12834 | -4/Zhirov | Discovered new exit (range 3) 12841 | -4/Zhirov | Met Zhirov 12853 | -4/Zhirov | Zhirov requested help retrieving the SGEMP Prototype 12859 | -4/Zhirov | Found Alien Artifact 12859 | -4/Zhirov | Identified Integrated Dissipator 12859 | -4/Zhirov | Installed Integrated Dissipator, increased core heat dissipation (+20) 12868 | -4/Zhirov | Found Alien Artifact 12917 | -4/Zhirov | Identified exit to Proximity Caves 12917 | -4/Zhirov | Entered Proximity Caves 12957 | -3/Proximity Caves | Spotter reported a threat 12990 | -3/Proximity Caves | Discovered exit to Research (range 5) 13025 | -3/Proximity Caves | Entered Research 13025 | -3/Research | Evolved 2 slots: Propulsion x1, Utility x1 13026 | -3/Research | Identified exit to Armory 13027 | -3/Research | Loaded intel: 106 machine locations 13169 | -3/Research | Build established: Scavenger-Sprinter 13224 | -3/Research | Spotted B-86 Titan 13225 | -3/Research | Revision forces began assault on 0b10 13268 | -3/Research | Spotted B-86 Titan 13284 | -3/Research | Found Adv. Micro-nuke Launcher 13288 | -3/Research | Found Adv. Micro-nuke Launcher 13352 | -3/Research | Intercept squad dispatched 13360 | -3/Research | Discovered new exit (range 16) 13363 | -3/Research | Identified exit to Research 13376 | -3/Research | Spotted Tracker 13379 | -3/Research | Spotted Tracker 13431 | -3/Research | Entered Armory 13432 | -3/Armory | Loaded intel: 90 machine locations 13432 | -3/Armory | Lost 3 allies 13520 | -3/Armory | Spotted B-86 Titan 13550 | -3/Armory | Identified Transdimensional Reconstructor 13550 | -3/Armory | Warped through subspace to slip node 13550 | -3/Armory | Discovered new exit (range 1) 13550 | -3/Armory | Identified exit to Lab 13574 | -3/Armory | Entered Lab 13574 | -3/Lab | Discovered exit to Research (range 9) 13578 | -3/Lab | Hidden lab's door opened automatically 13578 | -3/Lab | Sensor layout match revealed 13610 | -3/Lab | Gained access to the hidden lab's interior 13613 | -3/Lab | Found Alien Artifact 13618 | -3/Lab | Found Transdimensional Reconstructor 13627 | -3/Lab | Found Alien Artifact 13627 | -3/Lab | Identified Integrated Mediator 13627 | -3/Lab | Installed Integrated Mediator, increased core attachment efficiency 13631 | -3/Lab | Found Alien Artifact 13639 | -3/Lab | Decrypted terminal 13639 | -3/Lab | Acquired modification code for an L2 power cell 13643 | -3/Lab | Found Prototype Special Weapon 13695 | -3/Lab | Found Prototype Hackware 13696 | -3/Lab | Identified Deep Network Scanner 13697 | -3/Lab | Found Prototype Device 13699 | -3/Lab | Found Prototype Energy Gun 13699 | -3/Lab | Identified Hyp. EM Gauss Rifle 13702 | -3/Lab | Found Hyp. EM Gauss Rifle 13808 | -3/Lab | Entered Research 13808 | -2/Research | Evolved 2 slots: Power x1, Utility x1 13809 | -2/Research | Loaded intel: 131 machine locations 13811 | -2/Research | Identified AEGIS Remote Shield 13836 | -2/Research | Spotted B-90 Cyclops 13878 | -2/Research | Discovered new exit (range 13) 13894 | -2/Research | Identified exit to Quarantine 13894 | -2/Research | Entered Quarantine 13895 | -2/Quarantine | Loaded intel: 70 machine locations 13896 | -2/Quarantine | Identified Core Reset Matrix 13896 | -2/Quarantine | Identified Core Regenerator 13896 | -2/Quarantine | Used Core Reset Matrix 13900 | -2/Quarantine | Detected hypermatrix surge 13900 | -2/Quarantine | Sensed 15 artifacts in vicinity 13908 | -2/Quarantine | Found Sigix Corpse 13914 | -2/Quarantine | Found Sigix Corpse 13926 | -2/Quarantine | Found Matter Drive 14013 | -2/Quarantine | Found Dimensional Node Initializer 14021 | -2/Quarantine | Found Hpw. Transdimensional Reconstructor 14022 | -2/Quarantine | Identified Gui. Remote Datajack 14026 | -2/Quarantine | Found Transdimensional Reconstructor 14028 | -2/Quarantine | Found Hpw. Transdimensional Reconstructor 14040 | -2/Quarantine | Found Phase Redirector 14106 | -2/Quarantine | Found Terrabomb 14111 | -2/Quarantine | Found Terrabomb 14129 | -2/Quarantine | Found Subatomic Replicator 14134 | -2/Quarantine | Discovered new exit (range 11) 14177 | -2/Quarantine | Found Sigix Broadsword 14229 | -2/Quarantine | Spotted Fortress 14248 | -2/Quarantine | Discovered new exit (range 6) 14248 | -2/Quarantine | Discovered new exit (range 6) 14249 | -2/Quarantine | Identified exit to Section 7 14250 | -2/Quarantine | Identified exit to Protoforge 14251 | -2/Quarantine | Entered Section 7 14252 | -2/Section 7 | Detected hypermatrix surge 14252 | -2/Section 7 | Sensed 20 artifacts in vicinity 14276 | -2/Section 7 | Identified exit to Access 14317 | -2/Section 7 | Spotted S7 Guard 14331 | -2/Section 7 | Initialized slip node 14332 | -2/Section 7 | Spotted S7 Guard 14337 | -2/Section 7 | Found Core Physics Calibrator 14439 | -2/Section 7 | Spotted Executioner 14460 | -2/Section 7 | Found Matter Drive 14469 | -2/Section 7 | Found Hpw. Transdimensional Reconstructor 14472 | -2/Section 7 | Found Transdimensional Reconstructor 14506 | -2/Section 7 | Spotted B-99 Colossus 14516 | -2/Section 7 | Found Integrated Reactor 14516 | -2/Section 7 | Installed Integrated Reactor, increased core energy generation (+10) 14518 | -2/Section 7 | Found Integrated Reactor 14518 | -2/Section 7 | Installed Integrated Reactor, increased core energy generation (+10) 14539 | -2/Section 7 | Found LRC Inertial Stabilizer 14539 | -2/Section 7 | Installed LRC Inertial Stabilizer, increased mass support (+10) 14540 | -2/Section 7 | Found LRC Inertial Stabilizer 14540 | -2/Section 7 | Installed LRC Inertial Stabilizer, increased mass support (+10) 14558 | -2/Section 7 | Found Integrated Dissipator 14558 | -2/Section 7 | Installed Integrated Dissipator, increased core heat dissipation (+20) 14586 | -2/Section 7 | Intercept squad dispatched 14593 | -2/Section 7 | Spotted Executioner 14597 | -2/Section 7 | Spotted Executioner 14597 | -2/Section 7 | Spotted Striker 14598 | -2/Section 7 | Spotted Striker 14623 | -2/Section 7 | Spotted Tracker 14625 | -2/Section 7 | System corruption reached 10% 14625 | -2/Section 7 | Spotted Tracker 14656 | -2/Section 7 | Warped through subspace to slip node 14687 | -2/Section 7 | Lost 10 parts (2p5n1u2w) 14722 | -2/Section 7 | Destroyed Tracker 14735 | -2/Section 7 | Crushed by falling debris 14749 | -2/Section 7 | Crushed by falling debris 14751 | -2/Section 7 | Crushed by falling debris 14757 | -2/Section 7 | Crushed by falling debris 14760 | -2/Section 7 | Used Core Regenerator, restored core integrity (+362) 14782 | -2/Section 7 | Spotted Alpha 7 14784 | -2/Section 7 | Spotted Alpha 7 14790 | -2/Section 7 | Lost 10 parts (1p1n7u1w) 14791 | -2/Section 7 | System corruption reached 30% 14856 | -2/Section 7 | Core integrity fell below 50% 14867 | -2/Section 7 | Core integrity fell below 20% 14872 | -2/Section 7 | Warped through subspace to slip node 14873 | -2/Section 7 | Entered Access 14873 | -1/Access | Evolved 2 slots: Propulsion x2 14907 | -1/Access | Build established: Alien-Mutant 14938 | -1/Access | Warped through subspace 14960 | -1/Access | Warped through subspace 14996 | -1/Access | Core integrity fell below 50% 14998 | -1/Access | Spotted B-99 Colossus 15046 | -1/Access | System corruption reached 10% 15050 | -1/Access | Emitted hypermatrix ping 15055 | -1/Access | Assembled emerged from beneath the floor 15076 | -1/Access | Lost 3 parts (1n2u) 15109 | -1/Access | Lost 6 allies 15120 | -1/Access | Lost 3 parts (1p2n) 15133 | -1/Access | Core integrity fell below 20% 15163 | -1/Access | Destroyed by S-43 Plague with Heavy Machine Gun Last Messages --------------- 15092_ Slug penetrates Wall. 15105_ System corrupted: Heat flow error (+172). 15121_ 5SVQ#=LU8D/CJZMFY95<|JHJQ& 15132_ Penetrated by Slug. 15132_ Hvy. Machine Gun destroyed. 15132_ Penetrated by Slug. 15132_ Slug penetrates Sealed Heavy Doors. 15132_ Slug penetrates Wall. 15137_ Enh. Quantum Rifle destroyed. 15138_ Penetrated by Slug. 15138_ Slug penetrates Sealed Heavy Doors. 15141_ Enh. Quantum Rifle destroyed. 15141_ Slug penetrates Wall. 15147_ Wall collapses. 15147_ System corrupted: Matter fused (-8). 15155_ Detected hypermatrix ping. 15158_ ALERT: Potential suspicious activity detected, Programmers report to Access Zone 1A. 15160_ R-10 Processor collects Unknown Wheel. 15162_ Detected hypermatrix ping. Map ----- +----------------------------------------------------+ | ????????# #??????????# #? | | ????????# #??????????# #? | | ????????# """"" #??????????# ###### ####? | | ????????# """"" #??????????#######?????/#???? | | ????????# """"" #???????????????????????#???? | | ????????# """"" #???????????????????????????? | | ????????# """"" #???????????????????????????? | | ????????# """"" #???????????????????????????? | | ????????# #???????????????????????????? | | ????????# #???????????????????????????? | | ????????# #???????????????????????????? | | ????????# #???????????????????????????? | | ????????####+##+####################?????????????? | | ???????????# p ?????????????? | | ???????????# ????????????? | | ???????????# ?????????????? | | ???????????# ????????????? | | ???????????# ????????????? | | ???????????# ???????????? | | ???????????# ????????????? | | ???????????######## ########???????????????? | | ??????????????????# =| #??????????????????????? | | ??????????????????# !%! #??????????????????????? | | ??????????????????# R #??????????????????????? | | ??????????????????# #??????????????????????? | | ??????????????????# @#??????????????????????? | | ????????????#######s ########???????????????? | | ???????? s=s #???????????????? | | ??????? sss #???????????????? | | ???????? #???????????????? | | ???????? #???????????????? | | ????????? #???????????????? | | ???????? #???????????????? | | ????????? #???????????????? | | ????????? ############## #???????????????? | | ?????????? ??????????????# #???????????????? | | ?????????????????????????# / ??????????????? | | ?????????????????????????+ / ??????????????? | | ?????????????????????????# # ??????????????? | | ?????????????????????????# #???????????????? | | ?????????????????????????# #???????????????? | | ?????????????????????????# ???????????????? | | ?????????????????????????# ??????????????? | | ?????????????????????????# ?????????? | | ?????????????????????????# +????????? | | ?????????????????????????# #????????? | | ?????????????????????????# #????????? | | ?????????????????????????? #????????? | | ??????????????????????????####??# #????????? | | ????????????????????????????????# #????????? | +----------------------------------------------------+ Best States ------------- Heat Dissipation 92 Energy Generation 58 Energy Capacity 1100 Matter Stores 300 Matter Capacity 300 Sight Range 22 Robot Scan Range 16 Terrain Scan Density 10 Jamming Range 14 Cloak Strength 3 Power Amplification 40 Additional Mass Support 9 Armor Coverage 600 Resistance: EM 15 Utility Shielding 90 Weapon Shielding 66 Point Defense Rating 240 Evasion (%) 71 Melee Accuracy 14 Recoil Reduction 5 Force Boost 20 Offensive Hacking 34 Defensive Hacking 30 Authchip Count 1 Item Schematics ----------------- None Robot Schematics ------------------ None Fabricated ------------ Enh. Quantum Rifle | x2 | -4/Factory | Preloaded Imp. Linear Gravjet | x2 | -4/Factory Imp. Linear Gravjet | x2 | -4/Factory Hyp. Railgun | x2 | -4/Factory | Preloaded Repaired ---------- Nothing Alien Tech Used ----------------- Integrated Dissipator Transdimensional Reconstructor Integrated Mediator Core Reset Matrix Matter Drive Sigix Broadsword Dimensional Node Initializer Core Physics Calibrator Integrated Reactor LRC Inertial Stabilizer Core Regenerator High-powered Transdimensional Reconstructor Achievements -------------- None Challenges ------------ None Game ------ Seed ReinforcedLinearSpiker Manual? 0 Play Time 03:34:07 Cumulative 314.8 hours Start 2025.09.21 @ 00:10:53 End 2025.09.21 @ 04:38:55 Sessions 3 Manual Loads 0 Difficulty Rogue Special Mode None Game No. 429 Rogue 429 Adventurer 0 Explorer 0 Win Type - Total 10 Types 5/0/1/2/1/0/1/0/0/0 Lore% 86 Gallery% 82 Achievement% 67 Wizard Run 0 Options --------- Layout 0 ASCII 0 Keyboard 0 Movement Mouse Keybinds 0 Fullscreen 1 Font 24/Tamsyn Map View 76x50 Zoom Use 0% Tactical HUD 1 Map Filters NONE Filters NONE Steam 1 RUN: aa509562-2b9a-4bf0-99bd-16dd8a6406d3